Workbook

Sheet PR T-S Model
B3: Vanatoo's Passive Radiator Loudspeaker Model
B5: Only highlighted input parameters in the boxes in column E can be changed by the user without "unprotectiong" the sehhet with the pasword!
B7: Sheet Password: | C7: Opensesame
B9: Parameter Input | C9: Symbol | D9: Units | E9: Value
B11: Physical Parameters
B12: Air Density | C12: Rho | D12: Kg/m^3 | E12: 1.204
B13: Speed of Sound | C13: SS | D13: m/s | E13: 343.2
B15: Driver T/S Input Parameters
B16: Voice Coil Resistance | C16: Re | D16: W | E16: 6
B17: Voice Coil Inductance | C17: Le | D17: H | E17: 0
B18: Driver Resonant Frequency | C18: Fs | D18: Hz | E18: 30
B19: Driver Mechanical Q | C19: Qms | D19: - | E19: 3
B20: Driver Electrical Q | C20: Qes | D20: - | E20: 0.468
B21: Driver Total Q | C21: Qts | D21: - | E21: =(Qms*Qes)/(Qms+Qes) -> 0.4048442907
B22: Driver Cone Area | C22: Sd | D22: m^2 | E22: 0.0224
B23: Driver Equivalent Volume | C23: Vas | D23: m^3 | E23: 0.0421
B24: Driver Maximum Excursion | C24: Xdmax | D24: mm | E24: 6
B25: Calculated Driver Parameters
B26: Driver Mechanical Stiffness | C26: Kd | D26: N/m | E26: =(Rho*SS^2*Sd^2)/Vas -> 1690.187892
B27: Driver Moving Mass | C27: Md | D27: Kg | E27: =Kd/(2*PI()*Fs)^2 -> 0.04756995493
B28: Driver Viscous Damping | C28: Dd | D28: Kg/s | E28: =SQRT(Md*Kd)/Qms -> 2.988908419
B29: Driver Force Factor | C29: Bl | D29: N/A | E29: =SQRT(Re*SQRT(Md*Kd)/Qes) -> 10.72184761
B30: Driver One Volt Sensitivity | C30: SensV | D30: dB/V*m | E30: =79.6+20*LOG10((Sd*Bl)/(Md*Re)) -> 78.10067316
B32: Box Input Parameters
B33: Box Volume | C33: Vb | D33: m^3 | E33: 0.0397
B34: Box Tuning Frequency | C34: Fb | D34: Hz | E34: 30
B35: Box Leakage Q | C35: Qbl | D35: - | E35: 7
B37: PR Input Parameters
B38: PR Area | C38: Sr | D38: m^2 | E38: 0.0224
B39: PR Stiffness | C39: Kr | D39: N/m | E39: 2000 | F39: 2000
B40: PR Damping | C40: Dr | D40: kg/s | E40: 1 | F40: 1
B41: PR Xmax | C41: Xrmax | D41: mm | E41: 30
B43: Calculated Parameters
B44: Box Leakage Viscous Damping | C44: Dbl | D44: Kg/s | E44: =(Qbl*Rho*SS^2*Sr^2)/(2*PI()*Fb*Vb) -> 66.56156003
B45: PR Moving Mass | C45: Mr | D45: Kg | E45: =(Kbr+Kr)/(2*PI()*Fb)^2 -> 0.1067352669
B46: Box Stiffness to PR | C46: Kbr | D46: N/m | E46: =(Rho*SS^2*E38^2)/Vb -> 1792.365497
B50: Design Check
B51: Max 1 Volt Driver Displacement | C51: 1VXd | D51: mm | E51: =MAX(L174:L324) -> 0.2838019675
B52: Max Drive Voltage Based on Woofer | C52: MVd | D52: V | E52: =Xdmax/E51 -> 21.14150248
B53: Max 1 Volt PR Displacement | C53: 1VVr | D53: m/s | E53: =MAX(M174:M324) -> 0.7336087117
B54: Max Drive Voltage Based on PR | C54: MVr | D54: V | E54: =Xrmax/E53 -> 40.89373466
B55: Maximum Drive Voltage | C55: MaxV | D55: V | E55: =IF(MVd<MVr,MVd,MVr) -> 21.14150248
F172: One Volt Solution for Displacements, Velocities, Sound Pressures, and Impedance | S172: Maximum Ouput | X172: Power
C173: Freq [Hz] | D173: Freq [rad/s] | E173: Im Freq | F173: Bw | G173: Xd 1 | H173: Ad1 | I173: Xr 1 | J173: Ar1 | K173: |Xd 1| [mm] | L173: Max |Xd 1| | M173: |Xr 1| [mm] | N173: SPd 1 | O173: SPr 1 | P173: SPL 1 | Q173: |Zin| | R173: Ph Zin | S173: XdV | T173: XrV | U173: SPdM | V173: SPrM | W173: SPLM | X173: Watts
C174: 10 | D174: =2*PI()*C174 -> 62.83185307 | E174: =COMPLEX(0,2*PI()*C174) -> 62.8318530717959i | F174: =IMPRODUCT(IMDIV(COMPLEX(0,Sd*Dbl/Sr*D174),COMPLEX(Kbr,Dbl*D174)),IMSUM(IMDIV(IMPRODUCT(COMPLEX(Kbr,0),IMSUB(COMPLEX(1,0),IMDIV(COMPLEX(Kbr,0),COMPLEX(Kbr,Dbl*D174)))),IMSUB(Mr*D174^2-Kr,IMSUM(COMPLEX(0,D174*Dr),IMPRODUCT(COMPLEX(Kbr,0),IMSUB(COMPLEX(1,0),IMDIV(COMPLEX(Kbr,0),COMPLEX(Kbr,Dbl*D174))))))),COMPLEX(1,0))) -> 0.446674580580211+0.0991683138266632i | G174: =IMDIV(COMPLEX(Bl,0),IMPRODUCT(COMPLEX(Re,Le*D174),IMSUM(COMPLEX(Kd-Md*D174^2,0),IMPRODUCT(E174,IMSUM(COMPLEX(Dd,0),IMDIV(COMPLEX(Bl^2,0),COMPLEX(Re,Le*D174)))),IMPRODUCT(COMPLEX(Sd*Kbr/Sr,0),F174)))) -> 0.000529873728712457-0.000361084116908553i | H174: =IMPRODUCT(G174,COMPLEX(-D174^2,0)) -> 2.09185763396884-1.42550295576165i | I174: =IMPRODUCT(G174,IMPRODUCT(IMDIV(COMPLEX(0,Sd*Dbl*Kbr/Sr*D174),COMPLEX(Kbr,Dbl*D174)),IMDIV(COMPLEX(1,0),IMSUB(Mr*D174^2-Kr,IMSUM(COMPLEX(0,D174*Dr),IMPRODUCT(COMPLEX(Kbr,0),IMSUB(COMPLEX(1,0),IMDIV(COMPLEX(Kbr,0),COMPLEX(Kbr,Dbl*D174))))))))) -> -0.000303987533980297+0.000135562606698916i | J174: =IMPRODUCT(I174,COMPLEX(-D174^2,0)) -> -1.2000946812993+0.535179719879506i | K174: =1000*IMABS(G174) -> 0.6412081627 | L174: =IF(AND(K175>K174,K175>K176),K175,0) -> 0 | M174: =1000*IMABS(I174) -> 0.3328447704 | N174: =79.6+20*LOG10(IMABS(IMPRODUCT(COMPLEX(Sd,0),H174))) -> 54.67213595 | O174: =79.6+20*LOG10(IMABS(IMPRODUCT(COMPLEX(Sr,0),J174))) -> 48.97698986 | P174: =79.6+20*LOG10(IMABS(IMSUM(IMPRODUCT(COMPLEX(Sd,0),H174),IMPRODUCT(COMPLEX(Sr,0),J174)))) -> 48.61323733 | Q174: =IMABS(IMDIV(COMPLEX(Re,D174*Le),IMSUB(COMPLEX(1,0),IMPRODUCT(COMPLEX(Bl,0),IMPRODUCT(COMPLEX(0,D174),G174))))) -> 7.170920389 | R174: =180/PI()*IMARGUMENT(IMDIV(COMPLEX(Re,D174*Le),IMSUB(COMPLEX(1,0),IMPRODUCT(COMPLEX(Bl,0),IMPRODUCT(COMPLEX(0,D174),G174))))) -> 25.25351646 | S174: =MaxV*K174 -> 13.55610396 | T174: =MaxV*M174 -> 7.036838538 | U174: =20*LOG10(MaxV)+N174 -> 81.17485292 | V174: =20*LOG10(MaxV)+O174 -> 75.47970682 | W174: =20*LOG10(MaxV)+P174 -> 75.1159543 | X174: =IMABS(IMDIV(COMPLEX($E$55^2,0),IMDIV(COMPLEX(Re,D174*Le),IMSUB(COMPLEX(1,0),IMPRODUCT(COMPLEX(Bl,0),IMPRODUCT(COMPLEX(0,D174),G174)))))) -> 62.32995249
C175: 10.23 | D175: =2*PI()*C175 -> 64.27698569 | E175: =COMPLEX(0,2*PI()*C175) -> 64.2769856924472i | F175: 0.444653071359197+0.0965310190175707i | G175: 0.000525029463676709-0.000365966668320408i | H175: =IMPRODUCT(G175,COMPLEX(-D175^2,0)) -> 2.16917544718665-1.51200259476894i | I175: -0.000303186697289659+0.000141317204141921i | J175: =IMPRODUCT(I175,COMPLEX(-D175^2,0)) -> -1.25262520520049+0.583856394159385i | K175: 0.6399902656 | L175: =IF(AND(K176>K175,K176>K177),K176,0) -> 0 | M175: =1000*IMABS(I175) -> 0.3345037004 | N175: 55.05064782 | O175: 49.41519898 | P175: 48.91333022 | Q175: =IMABS(IMDIV(COMPLEX(Re,D175*Le),IMSUB(COMPLEX(1,0),IMPRODUCT(COMPLEX(Bl,0),IMPRODUCT(COMPLEX(0,D175),G175))))) -> 7.222577599 | R175: 25.82104686 | S175: 13.53035579 | T175: 7.071910812 | U175: 81.55336478 | V175: 75.91791595 | W175: 75.41604719 | X175: 61.88415715
C176: 10.47 | D176: 65.78495017 | E176: 65.7849501661703i | F176: 0.442355943548646+0.0938788867526132i | G176: 0.000519888653865288-0.000371063147473032i | H176: 2.24990115937364-1.6058350177358i | I176: -0.000302288391886036+0.000147331971098071i | J176: -1.30820128178027+0.637602629181915i | K176: 0.6387269149 | L176: 0 | M176: 0.336281105 | N176: 55.43632671 | O176: 49.86407168 | P176: 49.21585776 | Q176: 7.278653033 | R176: 26.41326331 | S176: 13.50364666 | T176: 7.109487815 | U176: 81.93904368 | V176: 76.36678865 | W176: 75.71857473 | X176: 61.40739573
C177: 10.72 | D177: 67.35574649 | E177: 67.3557464929652i | F177: 0.439761694583306+0.091219749603062i | G177: 0.000514437693110233-0.000376368285103158i | H177: 2.3338991696191-1.70750635079339i | I177: -0.000301284386871944+0.000153613479823468i | J177: -1.36686597766263+0.696913110769021i | K177: 0.6374160542 | L177: 0 | M177: 0.3381854269 | N177: 55.82840647 | O177: 50.3230443 | P177: 49.5196521 | Q177: 7.339528166 | R177: 27.03008016 | S177: 13.47593309 | T177: 7.149748041 | U177: 82.33112344 | V177: 76.82576126 | W177: 76.02236907 | X177: 60.89807369
C178: 10.96 | D178: 68.86371097 | E178: 68.8637109666883i | F178: 0.437079439470683+0.0887619462332138i | G178: 0.000509110285681382-0.000381452619941251i | H178: 2.41430823818172-1.80892869129051i | I178: -0.000300254470824867+0.000159664229805697i | J178: -1.42386996069657+0.757161417092402i | K178: 0.6361598732 | L178: 0 | M178: 0.340066778 | N178: 56.1959027 | O178: 50.7558614 | P178: 49.80056437 | Q178: 7.400441398 | R178: 27.62206117 | S178: 13.44937554 | T178: 7.189522632 | U178: 82.69861967 | V178: 77.25857837 | W178: 76.30328133 | X178: 60.39682001
C179: 11.22 | D179: 70.49733915 | E179: 70.497339146555i | F179: 0.43396256108156+0.0861997524941911i | G179: 0.000503231974101108-0.000386945703742335i | H179: 2.50099992009798-1.92307171234592i | I179: -0.000299064742704079+0.000166247442884353i | J179: -1.48631433633179+0.826228981401572i | K179: 0.6347987062 | L179: 0 | M179: 0.3421665276 | N179: 56.58459004 | O179: 51.21661983 | P179: 50.09316841 | Q179: 7.469296715 | R179: 28.26308192 | S179: 13.42059842 | T179: 7.233914492 | U179: 83.08730701 | V179: 77.7193368 | W179: 76.59588538 | X179: 59.84005512
C180: 11.48 | D180: 72.13096733 | E180: 72.1309673264217i | F180: 0.430626182165852+0.0837376455685907i | G180: 0.000497239955812754-0.000392417788091789i | H180: 2.58707805482692-2.04170126722135i | I180: -0.000297796710405654+0.000172865779850848i | J180: -1.54939949069627+0.899399294555243i | K180: 0.6334345223 | L180: 0 | M180: 0.3443333538 | N180: 56.9638652 | O180: 51.66941248 | P180: 50.37370438 | Q180: 7.54128246 | R180: 28.90367073 | S180: 13.39175753 | T180: 7.279724455 | U180: 83.46658217 | V180: 78.17212945 | W180: 76.87642135 | X180: 59.26884844
C181: 11.75 | D181: 73.82742736 | E181: 73.8274273593601i | F181: 0.426928255211366+0.0812824595426782i | G181: 0.000490894549065234-0.000398072382042491i | H181: 2.67561535481309-2.16968915166824i | I181: -0.000296395134006918+0.000179782091055094i | J181: -1.61549842659876+0.97990031517643i | K181: 0.63201193 | L181: 0 | M181: 0.3466578655 | N181: 57.34817529 | O181: 52.13169094 | P181: 50.65234912 | Q181: 7.619528113 | R181: 29.56828554 | S181: 13.36168179 | T181: 7.328868124 | U181: 83.85089226 | V181: 78.63440791 | W181: 77.15506609 | X181: 58.66021104
C182: 12.02 | D182: 75.52388739 | E182: 75.5238873922986i | F182: 0.42299081496182+0.0789268370805069i | G182: 0.000484421359451698-0.000403692835274584i | H182: 2.76307043664972-2.30260643316189i | I182: -0.000294904806974038+0.000186749024050769i | J182: -1.68209501475771+1.06518983393282i | K182: 0.6305806521 | L182: 0 | M182: 0.349061661 | N182: 57.72314663 | O182: 52.58637683 | P182: 50.91812782 | Q182: 7.701529679 | R182: 30.23210006 | S182: 13.33142242 | T182: 7.379687971 | U182: 84.2258636 | V182: 79.08909379 | W182: 77.42084479 | X182: 58.03563003
C183: 12.3 | D183: 77.28317928 | E183: 77.2831792783089i | F183: 0.418651500901505+0.0765853463931319i | G183: 0.000477570799992006-0.000409479505050374i | H183: 2.852382245586-2.44569406286268i | I183: -0.000293262493535369+0.000194034328155744i | J183: -1.75156590367453+1.15890685250211i | K183: 0.6290845206 | L183: 0 | M183: 0.3516421627 | N183: 58.10253954 | O183: 53.05037841 | P183: 51.18017326 | Q183: 7.790769421 | R183: 30.91944208 | S183: 13.29979195 | T183: 7.434243656 | U183: 84.60525651 | V183: 79.55309538 | W183: 77.68289023 | X183: 57.37085812
C184: 12.59 | D184: 79.10530302 | E184: 79.105303017391i | F184: 0.413877903627247+0.074265444275961i | G184: 0.000470325007727899-0.0004154215669598i | H184: 2.94312879804469-2.59956233872127i | I184: -0.000291453736091644+0.000201652127233358i | J184: -1.82381517013719+1.2618682253673i | K184: 0.6275194747 | L184: 0 | M184: 0.3544134037 | N184: 58.48572847 | O184: 53.52338707 | P184: 51.43696438 | Q184: 7.88798634 | R184: 31.62993365 | S184: 13.26670453 | T184: 7.492831853 | U184: 84.98844544 | V184: 80.02610404 | W184: 77.93968135 | X184: 56.66378057
C185: 12.88 | D185: 80.92742676 | E185: 80.9274267564731i | F185: 0.408814274375869+0.0720494266315268i | G185: 0.000462923066574808-0.000421305139803116i | H185: 3.03179815374751-2.75923201336741i | I185: -0.000289530631909031+0.000209351380836836i | J185: -1.89620802819359+1.37109419628162i | K185: 0.6259359283 | L185: 0 | M185: 0.3572897808 | N185: 58.85938723 | O185: 53.98920152 | P185: 51.67878449 | Q185: 7.990397591 | R185: 32.33869385 | S185: 13.23322598 | T185: 7.553642787 | U185: 85.3621042 | V185: 80.49191848 | W185: 78.18150146 | X185: 55.93753277
C186: 13.18 | D186: 82.81238235 | E186: 82.8123823486269i | F186: 0.403263287039582+0.0698635228253734i | G186: 0.000455098397696735-0.000427323411857881i | H186: 3.12101505561252-2.93053723936177i | I186: -0.000287415158927366+0.000217410388796842i | J186: -1.97106173689789+1.49097667694641i | K186: 0.62427546 | L186: 0 | M186: 0.3603813962 | N186: 59.23629678 | O186: 54.46401878 | P186: 51.91300923 | Q186: 8.102185729 | R186: 33.06969485 | S186: 13.19812119 | T186: 7.619004182 | U186: 85.73901375 | V186: 80.96673575 | W186: 78.4157262 | X186: 55.16574689
C187: 13.49 | D187: 84.76016979 | E187: 84.7601697938526i | F187: 0.397183460042135+0.0677162121698394i | G187: 0.00044683045152278-0.000433462333168909i | H187: 3.21015792860055-3.11411753793805i | I187: -0.000285087406208735+0.000225848180275499i | J187: -2.04814957052782+1.62255800628762i | K187: 0.6225327676 | L187: 0 | M187: 0.363706241 | N187: 59.6158774 | O187: 54.94764815 | P187: 52.13773694 | Q187: 8.224403416 | R187: 33.82224156 | S187: 13.16127805 | T187: 7.689296395 | U187: 86.11859437 | V187: 81.45036512 | W187: 78.64045391 | X187: 54.34596341
C188: 13.8 | D188: 86.70795724 | E188: 86.7079572390783i | F188: 0.390742596555943+0.0656804751917367i | G188: 0.000438373302643547-0.000439512671234423i | H188: 3.29580878368471-3.3043748642079i | I188: -0.000282607249675534+0.000234407883501196i | J188: -2.12471756422394+1.76234172279505i | K188: 0.620759648 | L188: 0 | M188: 0.3671701423 | N188: 59.98578812 | O188: 55.42466571 | P188: 52.34448644 | Q188: 8.353962727 | R188: 34.57135758 | S188: 13.12379164 | T188: 7.762528475 | U188: 86.48850509 | V188: 81.92738268 | W188: 78.84720341 | X188: 53.50312681
C189: 14.13 | D189: 88.78140839 | E189: 88.7814083904476i | F189: 0.383474453850366+0.0636349370522876i | G189: 0.00042915818792082-0.000445847739527398i | H189: 3.38268426521162-3.51423362207354i | I189: -0.000279788973529224+0.000243665291561415i | J189: -2.20533543335689+1.92060356983117i | K189: 0.6188351615 | L189: 0 | M189: 0.3710183877 | N189: 60.36934121 | O189: 55.92575025 | P189: 52.54424983 | Q189: 8.500617866 | R189: 35.36429226 | S189: 13.0831051 | T189: 7.843886164 | U189: 86.87205818 | V189: 82.42846722 | W189: 79.0469668 | X189: 52.58007526
C190: 14.45 | D190: 90.79202769 | E190: 90.792027688745i | F190: 0.376004160378311+0.0617709257672338i | G190: 0.000420008546984313-0.000451878535485362i | H190: 3.46221121700542-3.7249216605581i | I190: -0.000276868769617327+0.000252797119494591i | J190: -2.28228250755907+2.08385526681561i | K190: 0.6169289995 | L190: 0 | M190: 0.3749169231 | N190: 60.73157269 | O190: 56.40556987 | P190: 52.71723251 | Q190: 8.652181765 | R190: 36.12789459 | S190: 13.04280597 | T190: 7.926307059 | U190: 87.23428966 | V190: 82.90828684 | W190: 79.21994948 | X190: 51.65900802
C191: 14.79 | D191: 92.92831069 | E191: 92.9283106931861i | F191: 0.367590128682392+0.059920284291258i | G191: 0.000410050932703894-0.0004581557285491i | H191: 3.54106491866894-3.95648210566068i | I191: -0.000273549022505531+0.000262680149391199i | J191: -2.36227934111298+2.26841932953627i | K191: 0.6148564377 | L191: 0 | M191: 0.3792491643 | N191: 61.10635655 | O191: 56.90937471 | P191: 52.87768815 | Q191: 8.824248388 | R191: 36.93237399 | S191: 12.9989889 | T191: 8.017897147 | U191: 87.60907352 | V191: 83.41209168 | W191: 79.38040511 | X191: 50.65169377
C192: 15.14 | D192: 95.12742555 | E192: 95.1274255506989i | F192: 0.358389404939127+0.0581572602043158i | G192: 0.000399539863452729-0.000464466489427001i | H192: 3.61552695665197-4.20306273940425i | I192: -0.000269879577116145+0.000273063027047434i | J192: -2.44220158079095+2.47100934215489i | K192: 0.6126673015 | L192: 0 | M192: 0.3839249964 | N192: 61.48168415 | O192: 57.42211789 | P192: 53.01642955 | Q192: 9.01441979 | R192: 37.75167892 | S192: 12.95270727 | T192: 8.116751264 | U192: 87.98440112 | V192: 83.92483485 | W192: 79.51914652 | X192: 49.58312765
C193: 15.49 | D193: 97.32654041 | E193: 97.3265404082118i | F193: 0.348611223974901+0.0565421926636614i | G193: 0.000388757133623838-0.000470612504266878i | H193: 3.68248463605354-4.45785598927256i | I193: -0.000265932619541123+0.000283674109634268i | J193: -2.51903489604701+2.68709037088729i | K193: 0.6104164465 | L193: 0 | M193: 0.3888330729 | N193: 61.84673634 | O193: 57.92947576 | P193: 53.12667523 | Q193: 9.219226784 | R193: 38.56019249 | S193: 12.90512082 | T193: 8.220515376 | U193: 88.34945331 | V193: 84.43219273 | W193: 79.6293922 | X193: 48.48162841
C194: 15.85 | D194: 99.58848712 | E194: 99.5884871187964i | F194: 0.337915047978509+0.0550411838492669i | G194: 0.00037737447275113-0.00047674935194984i | H194: 3.74274974186566-4.7283365537065i | I194: -0.000261557133236031+0.000294843856875338i | J194: -2.59408879929159+2.92422208944323i | K194: 0.6080307864 | L194: 0 | M194: 0.3941383436 | N194: 62.21183715 | O194: 58.4462995 | P194: 53.20816025 | Q194: 9.446874663 | R194: 39.37820614 | S194: 12.85468438 | T194: 8.332676769 | U194: 88.71455412 | V194: 84.94901647 | W194: 79.71087722 | X194: 47.31333304
C195: 16.22 | D195: 101.9132657 | E195: 101.913265682453i | F195: 0.326203340464492+0.053676201912315i | G195: 0.000365357293879547-0.000482846582714248i | H195: 3.79471547487665-5.01499608769583i | I195: -0.000256694377109086+0.000306612986333456i | J195: -2.66610833134431+3.18457866731764i | K195: 0.6054971302 | L195: 0 | M195: 0.3998793901 | N195: 62.57643088 | O195: 58.97276952 | P195: 53.25530957 | Q195: 9.700952861 | R195: 40.20150472 | S195: 12.80111908 | T195: 8.454051118 | U195: 89.07914785 | V195: 85.47548649 | W195: 79.75802654 | X195: 46.07414689
C196: 16.6 | D196: 104.3008761 | E196: 104.300876099181i | F196: 0.313364146432022+0.0524736590510376i | G196: 0.000352667642816999-0.00048886949471932i | H196: 3.83655587750335-5.3182512529814i | I196: -0.000251274732431676+0.000319026308348329i | J196: -2.73353558573864+3.47058280877528i | K196: 0.6028000076 | L196: 0 | M196: 0.4060994664 | N196: 62.9399436 | O196: 59.509127 | P196: 53.26126968 | Q196: 9.985852618 | R196: 41.02457431 | S196: 12.74409786 | T196: 8.585552875 | U196: 89.44266057 | V196: 86.01184397 | W196: 79.76398665 | X196: 44.75963588
C197: 16.98 | D197: 106.6884865 | E197: 106.688486515909i | F197: 0.299641962415281+0.0514884841699747i | G197: 0.000339612327642983-0.000494630346739044i | H197: 3.86561461802903-5.63009685821904i | I197: -0.000245377379268198+0.000331791926054122i | J197: -2.79299161728294+3.77659941969813i | K197: 0.5999964275 | L197: 0 | M197: 0.412669287 | N197: 63.29263583 | O197: 60.04170549 | P197: 53.21927517 | Q197: 10.29836838 | R197: 41.81964579 | S197: 12.68482596 | T197: 8.724448755 | U197: 89.7953528 | V197: 86.54442246 | W197: 79.72199213 | X197: 43.40135357
C198: 17.38 | D198: 109.2017606 | E198: 109.201760638781i | F198: 0.284167220791396+0.0507075719968927i | G198: 0.000325458605438921-0.000500386852232183i | H198: 3.88110185225532-5.96712548566181i | I198: -0.000238594369048051+0.000345634040410043i | J198: -2.84524370280897+4.12169440912097i | K198: 0.5969173358 | L198: 0 | M198: 0.4199882889 | N198: 63.65242982 | O198: 60.5988896 | P198: 53.11640054 | Q198: 10.66159854 | R198: 42.61905376 | S198: 12.61972933 | T198: 8.879183452 | U198: 90.15514679 | V198: 87.10160657 | W198: 79.61911751 | X198: 41.92271219
C199: 17.78 | D199: 111.7150348 | E199: 111.715034761653i | F199: 0.267545716453038+0.0502168357968466i | G199: 0.000310864483418981-0.00050579910938781i | H199: 3.87966615577533-6.31249882498919i | I199: -0.000231150350454568+0.000359915479118404i | J199: -2.88481392821421+4.4918347953997i | K199: 0.5936913896 | L199: 0 | M199: 0.4277495022 | N199: 64.00064037 | O199: 61.15321562 | P199: 52.94423638 | Q199: 11.0655583 | R199: 43.37037115 | S199: 12.55152799 | T199: 9.043267162 | U199: 90.50335734 | V199: 87.65593259 | W199: 79.44695335 | X199: 40.39227981
C200: 18.2 | D200: 114.3539726 | E200: 114.353972590668i | F200: 0.248745349299017+0.0500516600278981i | G200: 0.000295044127678798-0.000511074747193453i | H200: 3.85824220914403-6.68323812157368i | I200: -0.00022253153660027+0.000375409157449153i | J200: -2.91000730681053+4.90916212555958i | K200: 0.5901257785 | L200: 0 | M200: 0.4364084329 | N200: 64.35390235 | O200: 61.7328733 | P200: 52.67575052 | Q200: 11.54114782 | R200: 44.09370963 | S200: 12.47614561 | T200: 9.226329966 | U200: 90.85661932 | V200: 88.23559027 | W200: 79.17846749 | X200: 38.72778809
C201: 18.62 | D201: 116.9929104 | E201: 116.992910419684i | F201: 0.228429520301563+0.0502937645581018i | G201: 0.000278689698313654-0.000515888827874819i | H201: 3.81452095866128-7.06114635085271i | I201: -0.000212980531870906+0.000391436359838433i | J201: -2.91513718492046+5.35772297153701i | K201: 0.5863524799 | L201: 0 | M201: 0.445626672 | N201: 64.69451749 | O201: 62.3107657 | P201: 52.29933433 | Q201: 12.07921071 | R201: 44.73112845 | S201: 12.39637241 | T201: 9.421217391 | U201: 91.19723446 | V201: 88.81348267 | W201: 78.8020513 | X201: 37.00267658
C202: 19.05 | D202: 119.6946801 | E202: 119.694680101771i | F202: 0.205896133660678+0.0510275029499984i | G202: 0.000261363688498602-0.00052028407798763i | H202: 3.74450959042015-7.4540144844107i | I202: -0.000202100723109806+0.000408417015915711i | J202: -2.89545996332832+5.85131561990234i | K202: 0.5822426466 | L202: 0 | M202: 0.4556853752 | N202: 65.03003455 | O202: 62.90125611 | P202: 51.77629745 | Q202: 12.70779945 | R202: 45.26825255 | S202: 12.30948436 | T202: 9.63387349 | U202: 91.53275152 | V202: 89.40397308 | W202: 78.27901442 | X202: 35.17234662
C203: 19.5 | D203: 122.5221135 | E203: 122.522113490002i | F203: 0.180226552724123+0.0524101854249835i | G203: 0.000242567368778427-0.000524232983793023i | H203: 3.64134087906392-7.86961166150457i | I203: -0.000189346063887836+0.000426818637434839i | J203: -2.8424003038695+6.40725980689314i | K203: 0.5776323655 | L203: 0 | M203: 0.4669326302 | N203: 65.36656994 | O203: 63.51862404 | P203: 51.04037351 | Q203: 13.46808749 | R203: 45.66548704 | S203: 12.21201609 | T203: 9.87165736 | U203: 91.86928691 | V203: 90.02134101 | W203: 77.54309048 | X203: 33.18682979
C204: 19.95 | D204: 125.3495469 | E204: 125.349546878233i | F204: 0.152166882924005+0.0545376912342587i | G204: 0.000223055562548034-0.000527425078193036i | H204: 3.5047625123056-8.28717123655113i | I204: -0.000174976993370278+0.000445862660430156i | J204: -2.74932756607688+7.00562102133607i | K204: 0.5726525972 | L204: 0 | M204: 0.4789681202 | N204: 65.6876958 | O204: 64.13600326 | P204: 50.05487834 | Q204: 14.35757449 | R204: 45.83669075 | S204: 12.1067363 | T204: 10.1261057 | U204: 92.19041277 | V204: 90.63872023 | W204: 76.55759531 | X204: 31.13082418
C205: 20.42 | D205: 128.302644 | E205: 128.302643972607i | F205: 0.119980830422303+0.0577167292709447i | G205: 0.000201874371365727-0.000529829752302741i | H205: 3.32316878261063-8.7218287345697i | I205: -0.000157969712239301+0.000466410308013064i | J205: -2.60042923111118+7.67784521131129i | K205: 0.566985739 | L205: 0 | M205: 0.4924357881 | N205: 66.00582732 | O205: 64.78137677 | P205: 48.67929515 | Q205: 15.45897678 | R205: 45.68503951 | S205: 11.98693041 | T205: 10.41083244 | U205: 92.50854429 | V205: 91.28409374 | W205: 75.18201212 | X205: 28.91285326
C206: 20.89 | D206: 131.2557411 | E206: 131.255741066982i | F206: 0.0844525198758152+0.0620884236094355i | G206: 0.000179838599836167-0.000531132098139894i | H206: 3.09827190809765-9.15038073391881i | I206: -0.000138585244085095+0.000487561202526658i | J206: -2.38755622550924+8.39973831336992i | K206: 0.5607523764 | L206: 0 | M206: 0.5068745368 | N206: 66.30511516 | O206: 65.42770219 | P206: 46.89303413 | Q206: 16.78181641 | R206: 45.06254481 | S206: 11.85514776 | T206: 10.71608928 | U206: =20*LOG10(MaxV)+N206 -> 92.80783212 | V206: =20*LOG10(MaxV)+O206 -> 91.93041916 | W206: 73.3957511 | X206: 26.63377528
C207: 21.38 | D207: 134.3345019 | E207: 134.3345018675i | F207: 0.0433321456059353+0.068221515577455i | G207: 0.000155928439631915-0.000531111960497162i | H207: 2.81384694803741-9.5843181182275i | I207: -0.000115419395609133+0.000510117885753429i | J207: -2.08283052691183+9.20546411773873i | K207: 0.5535283126 | L207: 0 | M207: 0.5230123271 | N207: 66.59525993 | O207: 66.10270164 | P207: 44.91671512 | Q207: 18.45683269 | R207: 43.69802337 | S207: 11.70242019 | T207: 11.05726641 | U207: 93.0979769 | V207: 92.6054186 | W207: 71.41943209 | X207: 24.21667546
C208: 21.88 | D208: 137.4760945 | E208: 137.476094521089i | F208: -0.00359401068458176+0.0765704394557701i | G208: 0.000130539047467124-0.000529373580196286i | H208: 2.467145776202-10.0049894476449i | I208: -0.000088143333198668+0.00053342387017108i | J208: -1.66588048879571+10.0815386181621i | K208: 0.545230988 | L208: 0 | M208: 0.5406572597 | N208: 66.86565842 | O208: 66.79248858 | P208: 44.71994522 | Q208: 20.54441158 | R208: 41.21143602 | S208: 11.52700229 | T208: 11.4303068 | U208: 93.36837539 | V208: 93.29520555 | W208: 71.22266219 | X208: 21.75594689
C209: 22.39 | D209: 140.680519 | E209: 140.680519027751i | F209: -0.0574988179216753+0.087882704445548i | G209: 0.000103647194332245-0.000525464990046053i | H209: 2.05128249718134-10.3994820497298i | I209: -0.0000559007203266599+0.000557088870360694i | J209: -1.10633162744698+11.02535053175i | K209: 0.5355895786 | L209: 0 | M209: 0.5598865064 | N209: 67.1109612 | O209: 67.49631886 | P209: 47.69278661 | Q209: 23.10068334 | R209: 37.00712843 | S209: 11.3231684 | T209: 11.83684196 | U209: 93.61367817 | V209: 93.99903583 | W209: 74.19550358 | X209: 19.34848076
C210: 22.91 | D210: 143.9477754 | E210: 143.947775387484i | F210: -0.119872383190965+0.103225722607545i | G210: 0.0000753076450240948-0.000518816471951623i | H210: 1.56044685379118-10.7503764205204i | I210: -0.0000176914908405521+0.000580452206494557i | J210: -0.366584710120495+12.0275281362308i | K210: 0.5242535388 | L210: 0 | M210: 0.5807217517 | N210: 67.32398608 | O210: 68.21252054 | P210: 51.45709542 | Q210: 26.00938528 | R210: 30.25436758 | S210: 11.08350749 | T210: 12.27733035 | U210: 93.82670305 | V210: 94.71523751 | W210: 77.95981239 | X210: 17.18468631
C211: 23.44 | D211: 147.2778636 | E211: 147.27786360029i | F211: -0.192623803504182+0.124156715761859i | G211: 0.0000457119790218523-0.000508723461558942i | H211: 0.991527982371735-11.0346031438186i | I211: 0.0000275985970651865+0.000602452796040282i | J211: 0.598634796608856+13.0676644965748i | K211: 0.510773086 | L211: 0 | M211: 0.603084616 | N211: 67.4950195 | O211: 68.9380244 | P211: 54.84097805 | Q211: 28.63864029 | R211: 20.15365159 | S211: 10.79851046 | T211: 12.7501149 | U211: 93.99773646 | V211: 95.44074137 | W211: 81.34369502 | X211: 15.60699539
C212: 23.99 | D212: 150.7336155 | E212: 150.733615519238i | F212: -0.279922739687593+0.153625521707319i | G212: 0.0000147155923890086-0.000494035896333833i | H212: 0.334347424648228-11.2248032737284i | I212: 0.0000821708367303278+0.000621765751881376i | J212: 1.8669725904134+14.1269051479899i | K212: 0.4942550106 | L212: 0 | M212: 0.6271719833 | N212: 67.61238664 | O212: 69.68109801 | P212: 57.83301666 | Q212: 29.56166124 | R212: 6.729093537 | S212: 10.44929353 | T212: 13.25935804 | U212: 94.1151036 | V212: 96.18381498 | W212: 84.33573363 | X212: 15.1196891
C213: 24.55 | D213: 154.2521993 | E213: 154.252199291259i | F213: -0.383825125500598+0.195063901831624i | G213: -0.0000163132966823225-0.000473928819788646i | H213: -0.388154355890057-11.2765395839419i | I213: 0.000146221094106353+0.000635420958888992i | J213: 3.47914683988391+15.1190417130013i | K213: 0.4742095 | L213: 0 | M213: 0.6520279161 | N213: 67.65361996 | O213: 70.41953876 | P213: 60.4644277 | Q213: 27.54048508 | R213: -7.113807112 | S213: 10.02550132 | T213: 13.78484981 | U213: 94.15633693 | V213: 96.92225573 | W213: 86.96714467 | X213: 16.22931208
C214: 25.12 | D214: 157.8336149 | E214: 157.833614916351i | F214: -0.508597175974077+0.254475302498412i | G214: -0.00004601860306314-0.000447447935043963i | H214: -1.14639012916511-11.1465768603605i | I214: 0.000220115808238603+0.000639888613027237i | J214: 5.48340395060912+15.940553187438i | K214: 0.449808144 | L214: 0 | M214: 0.6766892981 | N214: 67.59348679 | O214: 71.14072667 | P214: 62.81588131 | Q214: 23.53111194 | R214: -17.78327696 | S214: 9.509619992 | T214: 14.30622847 | U214: 94.09620376 | V214: 97.64344363 | W214: 89.31859828 | X214: 18.9945604
C215: 25.7 | D215: 161.4778624 | E215: 161.477862394515i | F215: -0.659474360805033+0.341734854015809i | G215: -0.00007235462536458-0.000413938207389646i | H215: -1.88665409499153-10.7934801695129i | I215: 0.000302926680852441+0.000630647363485749i | J215: 7.8988435090734+16.4441930950617i | K215: 0.4202142684 | L215: 0 | M215: 0.6996289524 | N215: 67.39889593 | O215: 71.8268355 | P215: 64.93496306 | Q215: 19.36798225 | R215: -23.85183617 | S215: 8.883960997 | T215: 14.79120723 | U215: 93.9016129 | V215: 98.32955247 | W215: 91.43768003 | X215: 23.07742342
C216: 26.3 | D216: 165.2477736 | E216: 165.247773578823i | F216: -0.845465031463385+0.476367737441268i | G216: -0.0000928385209408947-0.000372767281047113i | H216: -2.53512539988823-10.1790915328288i | I216: 0.000393054972531035+0.000601976487633769i | J216: 10.7330840077706+16.438067608891i | K216: 0.3841541836 | L216: 0 | M216: 0.7189352565 | N216: 67.02049638 | O216: 72.46418068 | P216: 66.87361358 | Q216: 15.90291563 | R216: -25.84718331 | S216: 8.121596626 | T216: 15.19937151 | U216: 93.52321335 | V216: 98.96689765 | W216: 93.37633055 | X216: 28.10573467
C217: 26.92 | D217: 169.1433485 | E217: 169.143348469274i | F217: -1.07149223956606+0.692366141883785i | G217: -0.000103761000486924-0.000325201341295168i | H217: -2.96854747250886-9.30383877591773i | I217: 0.000484135351482764+0.000548265892172335i | J217: 13.8508569428979+15.6855978723538i | K217: 0.3413535669 | L217: 0 | M217: 0.7314249976 | N217: 66.39924623 | O217: 73.0185533 | P217: 68.62306796 | Q217: 13.29385781 | R217: -24.64063457 | S217: 7.21672728 | T217: 15.4634234 | U217: 92.9019632 | V217: 99.52127027 | W217: 95.12578493 | X217: 33.62177734
C218: 27.54 | D218: 173.0389234 | E218: 173.038923359726i | F218: -1.3202916127906+1.03824175855888i | G218: -0.000101925898839875-0.000276257852039285i | H218: -3.05191306605458-8.27184217000033i | I218: 0.000563612372147727+0.000469598590184688i | J218: 16.8759459796369+14.0609412278715i | K218: 0.2944610155 | L218: 0 | M218: 0.7336087117 | N218: 65.51126865 | O218: 73.44000214 | P218: 70.1193973 | Q218: 11.47546888 | R218: -21.20303181 | S218: 6.22534829 | T218: 15.5095904 | U218: 92.01398562 | V218: 99.94271911 | W218: 96.62211427 | X218: 38.94944354
C219: 28.18 | D219: 177.060162 | E219: 177.060161956321i | F219: -1.54029898674701+1.61724227906596i | G219: -0.0000862485526304225-0.000229609816044786i | H219: -2.70391808163803-7.19833683453705i | I219: 0.00062300551697217+0.000367114799870652i | J219: 19.5314104518329+11.5091594598776i | K219: 0.2452742964 | L219: 0 | M219: 0.7231245746 | N219: 64.32283542 | O219: 73.71405707 | P219: 71.40139992 | Q219: 10.21471164 | R219: -16.18570258 | S219: 5.185467145 | T219: 15.28793999 | U219: 90.82555239 | V219: 100.216774 | W219: 97.90411689 | X219: 43.7568032
C220: 28.84 | D220: 181.2070643 | E220: 181.207064259059i | F220: -1.52179102069347+2.53472275772421i | G220: -0.0000580835045428233-0.000191195740163965i | H220: -1.90722996314805-6.27810335029173i | I220: 0.000652462032783768+0.000249777680442829i | J220: 21.4242433981275+8.20169994933689i | K220: 0.1998236837 | L220: 0 | M220: 0.6986383856 | N220: 62.94490456 | O220: 73.81701422 | P220: 72.45521167 | Q220: 9.395832399 | R220: -10.17866933 | S220: 4.224572904 | T220: 14.77026516 | U220: 89.44762153 | V220: 100.3197312 | W220: 98.95792864 | X220: 47.57035972
C221: 29.51 | D221: 185.4167984 | E221: 185.41679841487i | F221: -0.830851740878951+3.61093292606807i | G221: -0.0000224910410266671-0.000165870216771126i | H221: -0.773228251494002-5.70251672818521i | I221: 0.000648343950728681+0.000132771783224107i | J221: 22.2896689750488+4.56461280153249i | K221: 0.1673880992 | L221: 0 | M221: 0.6617992331 | N221: 61.80541503 | O221: 73.74544867 | P221: 73.27249864 | Q221: 8.932054204 | R221: -3.816561045 | S221: 3.538835913 | T221: 13.99143013 | U221: 88.308132 | V221: 100.2481656 | W221: 99.77521561 | X221: 50.04035096
C222: 30.2 | D222: 189.7521963 | E222: 189.752196276823i | F222: 0.634101365604735+4.05045440012485i | G222: 0.0000150080858577635-0.000154437132852601i | H222: 0.540379578431809-5.56064734277461i | I222: 0.000614778658430952+0.0000271762555332793i | J222: 22.1356564334912+0.978505430179956i | K222: 0.1551646566 | L222: 0 | M222: 0.6153790277 | N222: 61.54828891 | O222: 73.51528664 | P222: 73.89011033 | Q222: 8.740266118 | R222: 2.54930084 | S222: 3.280413972 | T222: 13.01003724 | U222: 88.05100588 | V222: 100.0180036 | W222: 100.3928273 | X222: 51.13838882
C223: 30.9 | D223: 194.150426 | E223: 194.150425991849i | F223: 1.89106226039536+3.44896899217975i | G223: 0.0000486684355395361-0.000155221195083178i | H223: 1.83452688833718-5.85096793975628i | I223: 0.000561288763057929-0.0000574722081352301i | J223: 21.1574363658105-2.16637970765549i | K223: 0.1626721735 | L223: 0 | M223: 0.5642234754 | N223: 62.35675966 | O223: 73.15951731 | P223: 74.33483521 | Q223: 8.766504446 | R223: 8.512400888 | S223: 3.439134159 | T223: 11.92853201 | U223: 88.85947663 | V223: 99.66223428 | W223: 100.8375522 | X223: 50.98533057
C224: 31.62 | D224: 198.6743194 | E224: 198.674319413019i | F224: 2.40404074164114+2.54003844597784i | G224: 0.0000758152300752824-0.000164693485295785i | H224: 2.99253973141335-6.50069646643807i | I224: 0.000497212939461531-0.000120065676280633i | J224: 19.6257331783335-4.73917056364575i | K224: 0.181306076 | L224: 0 | M224: 0.5115041288 | N224: 63.6988769 | O224: 72.7076126 | P224: 74.65262854 | Q224: 8.969093351 | R224: 13.97009822 | S224: 3.833082856 | T224: 10.81396581 | U224: 90.20159387 | V224: 99.21032957 | W224: 101.1553455 | X224: 49.83370221
C225: 32.36 | D225: 203.3238765 | E225: 203.323876540331i | F225: 2.4588907820734+1.82442915990848i | G225: 0.0000952611400640549-0.000179261212341677i | H225: 3.93815256989308-7.41076585468984i | I225: 0.000430665648658367-0.000162061297392821i | J225: 17.8039757858051-6.69971107188718i | K225: 0.2030006578 | L225: 0 | M225: 0.4601486336 | N225: 65.08244452 | O225: 72.19045835 | P225: 74.87752653 | Q225: 9.322091239 | R225: 18.82345117 | S225: 4.29173891 | T225: 9.72823348 | U225: 91.58516149 | V225: 98.69317532 | W225: 101.3802435 | X225: 47.94665872
C226: 33.11 | D226: 208.0362655 | E226: 208.036265520716i | F226: 2.35196080410929+1.34818023080566i | G226: 0.000107182569822663-0.000195703087632968i | H226: 4.63876384696275-8.46985110688064i | I226: 0.000367874933182171-0.000186863063348231i | J226: 15.9212915222384-8.08726291995661i | K226: 0.2231318036 | L226: 0 | M226: 0.4126133431 | N226: 66.30175185 | O226: 71.64138769 | P226: 75.03637773 | Q226: 9.802355138 | R226: 22.99070693 | S226: 4.71734158 | T226: 8.723266017 | U226: 92.80446882 | V226: 98.14410466 | W226: 101.5390947 | X226: 45.59752435
C227: 33.88 | D227: 212.8743182 | E227: 212.874318207244i | F227: 2.2083689628946+1.03166551273278i | G227: 0.000112895356950309-0.000212166966538834i | H227: 5.11590676525945-9.61444694274138i | I227: 0.000310768490030845-0.000199131563099769i | J227: 14.0826218502329-9.02374143949246i | K227: 0.2403334835 | L227: 0 | M227: 0.3690940718 | N227: 67.3461768 | O227: 71.07263256 | P227: 75.15388173 | Q227: 10.40700579 | R227: 26.54715083 | S227: 5.081010938 | T227: 7.803203234 | U227: 93.84889376 | V227: 97.57534953 | W227: 101.6565987 | X227: 42.94829233
C228: 34.67 | D228: 217.8380346 | E228: 217.838034599916i | F228: 2.06940831142488+0.81643517656499i | G228: 0.000113626691890976-0.000227405927217535i | H228: 5.39197391979301-10.7911865456736i | I228: 0.000260470649929386-0.000202438211059807i | J228: 12.3602203665169-9.60638329109642i | K228: 0.2542134553 | L228: 0 | M228: 0.3298881458 | N228: 68.23427944 | O228: 70.49764297 | P228: 75.24532966 | Q228: 11.13661905 | R228: 29.51097425 | S228: 5.374454395 | T228: 6.974331054 | U228: 94.73699641 | V228: 97.00035994 | W228: 101.7480466 | X228: 40.13454397
C229: 35.48 | D229: 222.9274147 | E229: 222.927414698732i | F229: 1.94640334628513+0.665195577902492i | G229: 0.000110554602709232-0.000240756170827261i | H229: 5.49419143153991-11.9647708773236i | I229: 0.000217057952803832-0.000199649481325527i | J229: 10.7870492518429-9.92190684719904i | K229: 0.2649261293 | L229: 0 | M229: 0.2949136658 | N229: 68.99399543 | O229: 69.9253975 | P229: 75.32130528 | Q229: 11.99842044 | R229: 31.89905143 | S229: 5.600936419 | T229: 6.234917997 | U229: 95.4967124 | V229: 96.42811447 | W229: 101.8240222 | X229: 37.25183071
C230: 36.31 | D230: 228.1424585 | E230: 228.142458503691i | F230: 1.84065589528447+0.555378593283094i | G230: 0.000104689775530656-0.000251940097667124i | H230: 5.44899617644531-13.1132254503633i | I230: 0.000180057620970025-0.000192912017556939i | J230: 9.37181575977497-10.0408740082769i | K230: 0.2728255155 | L230: 0 | M230: 0.2638859477 | N230: 69.65090475 | O230: 69.36153034 | P230: 75.38884989 | Q230: 13.00589167 | R230: 33.71739772 | S230: 5.767941313 | T230: 5.578945418 | U230: 96.15362172 | V230: 95.86424731 | W230: 101.8915669 | X230: 34.36620407
C231: 37.15 | D231: 233.4203342 | E231: 233.420334161722i | F231: 1.7514218622029+0.474058517811805i | G231: 0.0000969490517258776-0.000260822135075921i | H231: 5.28227416343121-14.2109076967357i | I231: 0.000149097929678205-0.000183880302546443i | J231: 8.12360851127383-10.018727919602i | K231: 0.278257623 | L231: 0 | M231: 0.2367322502 | N231: 70.21944924 | O231: 68.81565635 | P231: 75.45174138 | Q231: 14.16388043 | R231: 34.94385464 | S231: 5.882784228 | T231: 5.004875455 | U231: 96.72216621 | V231: 95.31837332 | W231: 101.9544583 | X231: 31.55654478
C232: 38.02 | D232: 238.8867054 | E232: 238.886705378968i | F232: 1.67425496159623+0.410766095575491i | G232: 0.0000877811678319172-0.000267698511002709i | H232: 5.00939544033666-15.2767129160281i | I232: 0.000122691078292946-0.000173401293071114i | J232: 7.00159434364691-9.89546696988786i | K232: 0.281723315 | L232: 0 | M232: 0.2124172995 | N232: 70.7290954 | O232: 68.27643727 | P232: 75.51421213 | Q232: 15.52501469 | R232: 35.57441557 | S232: 5.956054163 | T232: 4.490820865 | U232: 97.23181237 | V232: 94.77915424 | W232: 102.0169291 | X232: 28.78986822
C233: 38.9 | D233: 244.4159084 | E233: 244.415908449286i | F233: 1.60876969494309+0.361541393146865i | G233: 0.0000778758871213508-0.000272557421268818i | H233: 4.6522382354664-16.2823449395966i | I233: 0.000100742502005914-0.000162428741804629i | J233: 6.01827005884558-9.70335274620609i | K233: 0.2834646392 | L233: 0.2838019675 | M233: 0.1911338481 | N233: 71.18011697 | O233: 67.75689122 | P233: 75.57637013 | Q233: 17.08745959 | R233: 35.53524783 | S233: 5.992868373 | T233: 4.040856723 | U233: 97.68283393 | V233: 94.25960819 | W233: 102.0790871 | X233: 26.15737727
C234: 39.81 | D234: 250.1336071 | E234: 250.133607078819i | F234: 1.55159297092551+0.321596757964029i | G234: 0.0000673793939878928-0.000275687457140505i | H234: 4.21571450902453-17.2488878904453i | I234: 0.00008210935261726-0.000151197664556651i | J234: 5.13732119967408-9.45995727294061i | K234: 0.2838019675 | L234: 0 | M234: 0.1720542925 | N234: 71.59215024 | O234: 67.24515244 | P234: 75.64042708 | Q234: 18.91842232 | R234: 34.73445066 | S234: 6 | T234: 3.637486251 | U234: 98.09486721 | V234: 93.74786941 | W234: 102.1431441 | X234: 23.62581401
C235: 40.74 | D235: 255.9769694 | E235: 255.976969414496i | F235: 1.50196809504656+0.28903092708292i | G235: 0.0000566856953655496-0.000277208980553647i | H235: 3.71428534310918-18.1638991426116i | I235: 0.0000665003087488375-0.000140151172642127i | J235: 4.35738012042021-9.18329470966645i | K235: 0.282945378 | L235: 0 | M235: 0.1551278255 | N235: 71.96704817 | O235: 66.74679019 | P235: 75.70597691 | Q235: 21.02810887 | R235: 33.04151719 | S235: 5.981890412 | T235: 3.279635308 | U235: 98.46976514 | V235: 93.24950715 | W235: 102.2086939 | X235: 21.25550757
C236: 41.69 | D236: 261.9459955 | E236: 261.945995456317i | F236: 1.45862631804112+0.262070616012896i | G236: 0.000046009101514871-0.000277304051156757i | H236: 3.15694691549285-19.0274128406972i | I236: 0.000053433068733168-0.000129490969297513i | J236: 3.66634765662551-8.88511408934671i | K236: 0.2810949559 | L236: 0 | M236: 0.1400821329 | N236: 72.31049195 | O236: 66.26108582 | P236: 75.77300705 | Q236: 23.42291501 | R236: 30.29459549 | S236: 5.942769707 | T236: 2.961546761 | U236: 98.81320892 | V236: 92.76380279 | W236: 102.275724 | X236: 19.08230154
C237: 42.66 | D237: 268.0406852 | E237: 268.040685204281i | F237: 1.42054437551934+0.239447155614056i | G237: 0.0000355106734839313-0.000276144098487113i | H237: 2.5512930619168-19.8397961356109i | I237: 0.0000425011803672373-0.00011933842667435i | J237: 3.05353168374216-8.57396580022928i | K237: 0.2784179791 | L237: 0 | M237: 0.1266807421 | N237: 72.62693468 | O237: 65.78720112 | P237: 75.84131639 | Q237: 26.05924205 | R237: 26.31084427 | S237: 5.886174395 | T237: 2.678221223 | U237: 99.12965165 | V237: 92.28991809 | W237: 102.3440334 | X237: 17.15180842
C238: 43.65 | D238: 274.2610387 | E238: 274.261038658389i | F238: =IMPRODUCT(IMDIV(COMPLEX(0,Sd*Dbl/Sr*D238),COMPLEX(Kbr,Dbl*D238)),IMSUM(IMDIV(IMPRODUCT(COMPLEX(Kbr,0),IMSUB(COMPLEX(1,0),IMDIV(COMPLEX(Kbr,0),COMPLEX(Kbr,Dbl*D238)))),IMSUB(Mr*D238^2-Kr,IMSUM(COMPLEX(0,D238*Dr),IMPRODUCT(COMPLEX(Kbr,0),IMSUB(COMPLEX(1,0),IMDIV(COMPLEX(Kbr,0),COMPLEX(Kbr,Dbl*D238))))))),COMPLEX(1,0))) -> 1.3868952441021+0.220234058381424i | G238: =IMDIV(COMPLEX(Bl,0),IMPRODUCT(COMPLEX(Re,Le*D238),IMSUM(COMPLEX(Kd-Md*D238^2,0),IMPRODUCT(E238,IMSUM(COMPLEX(Dd,0),IMDIV(COMPLEX(Bl^2,0),COMPLEX(Re,Le*D238)))),IMPRODUCT(COMPLEX(Sd*Kbr/Sr,0),F238)))) -> 0.0000253107773224957-0.000273887660011195i | H238: 1.90385432903251-20.6015880325197i | I238: =IMPRODUCT(G238,IMPRODUCT(IMDIV(COMPLEX(0,Sd*Dbl*Kbr/Sr*D238),COMPLEX(Kbr,Dbl*D238)),IMDIV(COMPLEX(1,0),IMSUB(Mr*D238^2-Kr,IMSUM(COMPLEX(0,D238*Dr),IMPRODUCT(COMPLEX(Kbr,0),IMSUB(COMPLEX(1,0),IMDIV(COMPLEX(Kbr,0),COMPLEX(Kbr,Dbl*D238))))))))) -> 0.0000333639299733218-0.000109760490993008i | J238: 2.50960536311902-8.25608724976005i | K238: =1000*IMABS(G238) -> 0.2750546959 | L238: =IF(AND(K239>K238,K239>K240),K239,0) -> 0 | M238: 0.1147192974 | N238: =79.6+20*LOG10(IMABS(IMPRODUCT(COMPLEX(Sd,0),H238))) -> 72.9199063 | O238: =79.6+20*LOG10(IMABS(IMPRODUCT(COMPLEX(Sr,0),J238))) -> 65.3242546 | P238: =79.6+20*LOG10(IMABS(IMSUM(IMPRODUCT(COMPLEX(Sd,0),H238),IMPRODUCT(COMPLEX(Sr,0),J238)))) -> 75.91060014 | Q238: =IMABS(IMDIV(COMPLEX(Re,D238*Le),IMSUB(COMPLEX(1,0),IMPRODUCT(COMPLEX(Bl,0),IMPRODUCT(COMPLEX(0,D238),G238))))) -> 28.79671929 | R238: =180/PI()*IMARGUMENT(IMDIV(COMPLEX(Re,D238*Le),IMSUB(COMPLEX(1,0),IMPRODUCT(COMPLEX(Bl,0),IMPRODUCT(COMPLEX(0,D238),G238))))) -> 20.92932367 | S238: =MaxV*K238 -> 5.815069536 | T238: =MaxV*M238 -> 2.425338312 | U238: =20*LOG10(MaxV)+N238 -> 99.42262327 | V238: =20*LOG10(MaxV)+O238 -> 91.82697156 | W238: =20*LOG10(MaxV)+P238 -> 102.4133171 | X238: =IMABS(IMDIV(COMPLEX($E$55^2,0),IMDIV(COMPLEX(Re,D238*Le),IMSUB(COMPLEX(1,0),IMPRODUCT(COMPLEX(Bl,0),IMPRODUCT(COMPLEX(0,D238),G238)))))) -> 15.52132111
C239: 44.67 | D239: =2*PI()*C239 -> 280.6698877 | E239: =COMPLEX(0,2*PI()*C239) -> 280.669887671712i | F239: 1.35673101255848+0.203592063527544i | G239: 0.0000154044184368394-0.000270644188061467i | H239: =IMPRODUCT(G239,COMPLEX(-D239^2,0)) -> 1.21349208697358-21.3201544702627i | I239: 0.0000256681847615621-0.000100702588053584i | J239: =IMPRODUCT(I239,COMPLEX(-D239^2,0)) -> 2.02202629218648-7.93290537009439i | K239: 0.2710822249 | L239: 0 | M239: =1000*IMABS(I239) -> 0.1039224083 | N239: 73.19481403 | O239: 64.86697725 | P239: 75.98119275 | Q239: 31.37196788 | R239: 14.0272005 | S239: 5.731085529 | T239: 2.197075853 | U239: 99.697531 | V239: 91.36969422 | W239: 102.4839097 | X239: 14.24721359
C240: 45.71 | D240: 287.2044004 | E240: 287.204400391179i | F240: 1.32984722812135+0.189193928885054i | G240: 5.96322387751992E-06-0.00026656833399666i | H240: 0.491884676866396-21.9882535896494i | I240: 0.0000192688052692573-0.0000922706914983154i | J240: 1.58941375473094-7.61107417801055i | K240: 0.2666350253 | L240: 0 | M240: 0.09426116574 | N240: 73.45094791 | O240: 64.41926008 | P240: 76.05201725 | Q240: 33.31883057 | R240: 5.852730189 | S240: 5.637065049 | T240: 1.992822669 | U240: 99.95366488 | V240: 90.92197705 | W240: 102.5547342 | X240: 13.41473034
C241: 46.77 | D241: 293.8645768 | E241: 293.864576816789i | F241: 1.30577696317042+0.176626811799327i | G241: -2.96685258384129E-06-0.000261784096627776i | H241: -0.256206677342156-22.6067294153124i | I241: 0.000013959533660479-0.0000844535513160376i | J241: 1.20549492613032-7.29310377275717i | K241: 0.2618009081 | L241: 0 | M241: 0.08559947961 | N241: 73.69027287 | O241: 63.98027239 | P241: 76.12271114 | Q241: 34.2021752 | R241: -3.054525003 | S241: 5.534864547 | T241: 1.809701611 | U241: 100.1929898 | V241: 90.48298936 | W241: 102.6254281 | X241: 13.06826611
C242: 47.86 | D242: 300.7132488 | E242: 300.713248801615i | F242: 1.28394629689378+0.165475090597291i | G242: -0.0000114299031912284-0.00025635169702415i | H242: -1.03358852072718-23.1814886688132i | I242: 9.53134927339264E-06-0.0000771659075888096i | J242: 0.861905217498277-6.97799403379864i | K242: 0.2566063819 | L242: 0 | M242: 0.07775232416 | N242: 73.91641194 | O242: 63.54533047 | P242: 76.19357886 | Q242: 33.83298569 | R242: -11.99368966 | S242: 5.42504446 | T242: 1.643800954 | U242: 100.4191289 | V242: 90.04804744 | W242: 102.6962958 | X242: 13.21086856
C243: 48.98 | D243: 307.7504163 | E243: 307.750416345656i | F243: 1.26409837624526+0.155523504088851i | G243: -0.0000193886420174906-0.000250362824614706i | H243: -1.83630446581799-23.7119429251443i | I243: 5.86089777785143E-06-0.0000703982578560663i | J243: 0.555087496765504-6.66744144176181i | K243: 0.2511124517 | L243: 0 | M243: 0.07064180654 | N243: 74.1302713 | O243: 63.11414227 | P243: 76.2642574 | Q243: 32.38257302 | R243: -20.19910015 | S243: 5.30889452 | T243: 1.493473928 | U243: 100.6329883 | V243: 89.61685924 | W243: 102.7669744 | X243: 13.80258224
C244: 50.12 | D244: 314.9132476 | E244: 314.913247595841i | F244: 1.2461595119628+0.146669054700838i | G244: -0.0000267553522093908-0.000243961641637532i | H244: -2.65333773692622-24.1937622444056i | I244: 2.86393740669606E-06-0.0000641863189413897i | J244: 0.284017685056454-6.36537994001048i | K244: 0.2454243905 | L244: 0 | M244: 0.06425018036 | N244: 74.33095202 | O244: 62.69008462 | P244: 76.33381194 | Q244: 30.29146132 | R244: -27.13438944 | S244: 5.188640361 | T244: 1.358345348 | U244: 100.833669 | V244: 89.19280159 | W244: 102.8365289 | X244: 14.75541647
C245: 51.29 | D245: 322.2645744 | E245: 322.264574405241i | F245: 1.22975671609397+0.138677297332i | G245: -0.0000335871652048188-0.000237175807775435i | H245: -3.48817676812711-24.6317644730958i | I245: 4.13447254533904E-07-0.0000584475226971774i | J245: 0.0429383396698269-6.07003566938796i | K245: 0.2395421914 | L245: 0 | M245: 0.058448985 | N245: 74.52110343 | O245: 62.26900254 | P245: 76.4025841 | Q245: 27.96115916 | R245: -32.74004775 | S245: 5.064281834 | T245: 1.235699361 | U245: 101.0238204 | V245: 88.77171951 | W245: 102.9053011 | X245: 15.98514298
C246: 52.48 | D246: 329.7415649 | E246: 329.741564920785i | F246: 1.21484714716339+0.131489362613642i | G246: -0.0000398255748719993-0.000230139426582785i | H246: -4.33021482856479-25.0229446989561i | I246: -1.55506829106885E-06-0.0000532016015303985i | J246: -0.16908179718836-5.78458351425579i | K246: 0.2335599111 | L246: 0 | M246: 0.05322432379 | N246: 74.69987418 | O246: 61.85411121 | P246: 76.46975515 | Q246: 25.68857081 | R246: -37.07277312 | S246: 4.93780744 | T246: 1.125242173 | U246: 101.2025912 | V246: 88.35682817 | W246: 102.9724721 | X246: 17.3992991
C247: 53.7 | D247: 337.407051 | E247: 337.407050995544i | F247: 1.20114671434577+0.124939191673826i | G247: -0.0000455293959902884-0.000222863039053341i | H247: -5.18322661474999-25.3715124117118i | I247: -3.13176628554353E-06-0.000048374263017715i | J247: -0.3565312916927-5.50709628556942i | K247: 0.2274661735 | L247: 0 | M247: 0.04847553282 | N247: 74.86946297 | O247: 61.44157836 | P247: 76.53569421 | Q247: 23.59324984 | R247: -40.36598084 | S247: 4.808976671 | T247: 1.024845597 | U247: 101.3721799 | V247: 87.94429533 | W247: 103.0384112 | X247: 18.94453414
C248: 54.95 | D248: 345.2610326 | E248: 345.261032629518i | F248: 1.18853590096151+0.118948048568045i | G248: -0.0000507020875810973-0.000215409518356979i | H248: -6.04395150955856-25.6779305499904i | I248: -4.37490557312822E-06-0.0000439417657966755i | J248: -0.521511409181945-5.2380861299782i | K248: 0.2212960964 | L248: 0 | M248: 0.04415901471 | N248: 75.03033803 | O248: 61.03125047 | P248: 76.60020394 | Q248: 21.72569439 | R248: -42.81387022 | S248: 4.678531971 | T248: 0.933587919 | U248: 101.533055 | V248: 87.53396743 | W248: 103.1029209 | X248: 20.57301917
C249: 56.23 | D249: 353.3035098 | E249: 353.303509822708i | F249: 1.17690920289721+0.113449170395781i | G249: -0.0000553523603846032-0.000207836757119609i | H249: -6.90926816359678-25.9428844445656i | I249: -5.33525574296214E-06-0.0000398798702953507i | J249: -0.665964601931391-4.97793980754396i | K249: 0.2150813832 | L249: 0 | M249: 0.04023517129 | N249: 75.18293486 | O249: 60.62299553 | P249: 76.66311872 | Q249: 20.08874625 | R249: -44.59005192 | S249: 4.547143597 | T249: 0.8506319736 | U249: 101.6856518 | V249: 87.1257125 | W249: 103.1658357 | X249: 22.24942869
C250: 57.54 | D250: 361.5344826 | E250: 361.534482575113i | F250: 1.16617324280844+0.108385657888938i | G250: -0.0000594933797494863-0.000200197622840882i | H250: -7.77621202011649-26.1672671428195i | I250: -6.05696559306982E-06-0.0000361643217535505i | J250: -0.791688904691421-4.72693658863359i | K250: 0.2088505457 | L250: 0 | M250: 0.03666803785 | N250: 75.32766169 | O250: 60.21670282 | P250: 76.72430319 | Q250: 18.66397407 | R250: -45.83744944 | S250: 4.415414329 | T250: 0.7752174133 | U250: 101.8303787 | V250: 86.71941979 | W250: 103.2270202 | X250: 23.94790763
C251: 58.88 | D251: 369.9539509 | E251: 369.953950886734i | F251: 1.15624516520022+0.103708782835131i | G251: -0.0000631420193010898-0.000192539972686592i | H251: -8.64199092705417-26.3521616107717i | I251: -6.57833763555609E-06-0.0000327712165821266i | J251: -0.900350270562118-4.48526289634163i | K251: 0.2026291087 | L251: 0 | M251: 0.0334249482 | N251: 75.46490384 | O251: 59.81228201 | P251: 76.78365017 | Q251: 17.42579204 | R251: -46.66939132 | S251: 4.283883804 | T251: 0.7066536253 | U251: 101.9676208 | V251: 86.31499898 | W251: 103.2863671 | X251: 25.64951574
C252: 60.26 | D252: 378.6247466 | E252: 378.624746610642i | F252: 1.14698739626971+0.0993465072118362i | G252: -0.0000663394314307574-0.000184851798847925i | H252: -9.51020188659822-26.4997436400932i | I252: -6.93453954512183E-06-0.0000296559722708594i | J252: -0.994112696512067-4.25138228285252i | K252: 0.1963952843 | L252: 0 | M252: 0.03045594408 | N252: 75.59594131 | O252: 59.40676152 | P252: 76.84148592 | Q252: 16.34088044 | R252: -47.17698285 | S252: 4.15209139 | T252: 0.6438844174 | U252: 102.0986583 | V252: 85.90947849 | W252: 103.3442029 | X252: 27.35245073
C253: 61.66 | D253: 387.421206 | E253: 387.421206040693i | F253: 1.13846782172438+0.0953255333644291i | G253: -0.0000690617935611286-0.000177282780970352i | H253: -10.3658430877651-26.6092928512595i | I253: -7.14920368875362E-06-0.0000268410769126552i | J253: -1.07306109237515-4.02871656289882i | K253: 0.190259601 | L253: 0 | M253: 0.02777687029 | N253: 75.71922755 | O253: 59.00596213 | P253: 76.89691505 | Q253: 15.40100975 | R253: -47.42206264 | S253: 4.022373826 | T253: 0.5872447722 | U253: 102.2219445 | V253: 85.5086791 | W253: 103.399632 | X253: 29.02167678
C254: 63.1 | D254: 396.4689929 | E254: 396.468992883032i | F254: 1.13050460212751+0.091556281356125i | G254: -0.0000713727438110394-0.000169758547785316i | H254: -11.2189147528564-26.683949284819i | I254: -7.25044185696834E-06-0.0000242643019960022i | J254: -1.13968000626716-3.81404890852195i | K254: 0.1841522009 | L254: 0 | M254: 0.02532440046 | N254: 75.83686775 | O254: 58.60411292 | P254: 76.95069454 | Q254: 14.57172183 | R254: -47.46258939 | S254: 3.893254213 | T254: 0.5353958751 | U254: 102.3395847 | V254: 85.10682989 | W254: 103.4534115 | X254: 30.67332279
C255: 64.57 | D255: 405.7052753 | E255: 405.705275284586i | F255: 1.12310733134512+0.0880406577253462i | G255: -0.0000732772304471467-0.000162363344581676i | H255: -12.0611954749983-26.7244821484701i | I255: -7.25782771332756E-06-0.0000219258792245854i | J255: -1.19461500168791-3.60892890841i | K255: 0.1781331192 | L255: 0 | M255: 0.02309589234 | N255: 75.94828001 | O255: 58.20408149 | P255: 77.00240149 | Q255: 13.84235542 | R255: -47.33880037 | S255: 3.766001782 | T255: 0.4882818652 | U255: 102.450997 | V255: 84.70679845 | W255: 103.5051185 | X255: 32.2895283
C256: 66.07 | D256: 415.1300532 | E256: 415.130053245355i | F256: 1.11622738208062+0.0847540392326019i | G256: -0.0000748021810093214-0.000155122148649152i | H256: -12.8908813506349-26.7326592100647i | I256: -7.18976864462323E-06-0.0000198059502715878i | J256: -1.23903412020571-3.41321805785044i | K256: 0.1722156999 | L256: 0 | M256: 0.02107055859 | N256: 76.05378219 | O256: 57.80584836 | P256: 77.05203692 | Q256: 13.19794688 | R256: -47.08440567 | S256: 3.640898646 | T256: 0.4454632667 | U256: 102.5564992 | V256: 84.30856532 | W256: 103.5547539 | X256: 33.86611048
C257: 67.61 | D257: 424.8061586 | E257: 424.806158618412i | F257: 1.10978108507684+0.0816555537939572i | G257: -0.0000759813109233892-0.000148010754838737i | H257: -13.7116080665539-26.7100611363475i | I257: -0.0000070609021084564-0.0000178740808492208i | J257: -1.2742123178827-3.22556149895235i | K257: 0.166374106 | L257: 0 | M257: 0.01921819723 | N257: 76.15430724 | O257: 57.40684546 | P257: 77.09991731 | Q257: 12.62256577 | R257: -46.72350342 | S257: 3.517398575 | T257: 0.4063015644 | U257: 102.6570242 | V257: 83.90956243 | W257: 103.6026343 | X257: 35.40984736
C258: 69.18 | D258: 434.6707596 | E258: 434.670759550684i | F258: 1.10377598524199+0.0787485470733576i | G258: -0.0000768310346126897-0.000141095715238005i | H258: -14.5163534336237-26.6584366680715i | I258: -0.0000068849558475115-0.0000161273732761909i | J258: -1.30083439538719-3.04708444463011i | K258: 0.1606580491 | L258: 0 | M258: 0.01753552924 | N258: 76.24942719 | O258: 57.00975497 | P258: 77.14573137 | Q258: 12.11022604 | R258: -46.27918539 | S258: 3.396552543 | T258: 0.370727435 | U258: 102.7521442 | V258: 83.51247194 | W258: 103.6484483 | X258: 36.90790952
C259: 70.79 | D259: 444.7866879 | E259: 444.786687895243i | F259: 1.09814215689763+0.0759993959965174i | G259: -0.0000773813329211743-0.000134349893157768i | H259: -15.3087512989802-26.5791376777129i | I259: -6.67186793447663E-06-0.0000145399454565971i | J259: -1.31993031203776-2.87651298437215i | K259: 0.1550411703 | L259: 0 | M259: 0.01599761969 | N259: 76.33997235 | O259: 56.61213895 | P259: 77.18978397 | Q259: 11.64943499 | R259: -45.76559196 | S259: 3.277803286 | T259: 0.3382137163 | U259: 102.8426893 | V259: 83.11485592 | W259: 103.6925009 | X259: 38.36779446
C260: 72.44 | D260: 455.1539437 | E260: 455.153943652089i | F260: 1.09285511420461+0.0733965734389156i | G260: -0.0000776540088605631-0.000127790152190571i | H260: -16.0872014756213-26.4736612449904i | I260: -6.43078223654322E-06-0.0000130996308650233i | J260: -1.33223372499519-2.71378650083989i | K260: 0.1495341703 | L260: 0 | M260: 0.01459298766 | N260: 76.42610167 | O260: 56.21417707 | P260: 77.23207286 | Q260: 11.23379168 | R260: -45.19617948 | S260: 3.161377032 | T260: 0.3085176849 | U260: 102.9288186 | V260: 82.71689404 | W260: 103.7347898 | X260: 39.78737898
C261: 74.13 | D261: 465.7725268 | E261: 465.772526821223i | F261: 1.08789195028199+0.0709295626895525i | G261: -0.0000776711788004133-0.000121430274158172i | H261: -16.8502998441386-26.3435750727948i | I261: -6.16951722593562E-06-0.0000117947578419197i | J261: -1.33844003343542-2.55880249656124i | K261: 0.1441461879 | L261: 0 | M261: 0.01331086982 | N261: 76.50797834 | O261: 55.81604383 | P261: 77.27260764 | Q261: 10.85781918 | R261: -44.58217689 | S261: 3.04746699 | T261: 0.2814117873 | U261: 103.0106953 | V261: 82.3187608 | W261: 103.7753246 | X261: 41.16509217
C262: 75.86 | D262: 476.6424374 | E262: 476.642437402643i | F262: 1.08323126091028+0.068588761952002i | G262: -0.0000774549440746086-0.000115281143974499i | H262: -17.5968348516483-26.1904940512811i | I262: -5.89469721598295E-06-0.0000106142137171162i | J262: -1.33920454852058-2.41142212536208i | K262: 0.1388848823 | L262: 0 | M262: 0.01214121032 | N262: 76.58576813 | O262: 55.41790829 | P262: 77.31140825 | Q262: 10.51681989 | R262: -43.93298797 | S262: 2.936235083 | T262: 0.2566834282 | U262: 103.0884851 | V262: 81.92062525 | W262: 103.8141252 | X262: 42.49983664
C263: 77.62 | D263: 487.7008435 | E263: 487.70084354328i | F263: 1.07887677621911+0.0663775080946037i | G263: -0.000077030046889815-0.000109383470676357i | H263: -18.321759401273-26.0170896049836i | I263: -5.61347307330041E-06-9.55315072166609E-06i | J263: -1.33517643059014-2.27223708297659i | K263: 0.1337847965 | L263: 0 | M263: 0.01108033252 | N263: 76.65923589 | O263: 55.02215651 | P263: 77.34830073 | Q263: 10.2084062 | R263: -43.26035455 | S263: 2.828411608 | T263: 0.2342548774 | U263: 103.1619529 | V263: 81.52487348 | W263: 103.8510177 | X263: 43.78383056
C264: 79.43 | D264: 499.0734089 | E264: 499.073408949275i | F264: 1.07476052430839+0.0642627126383282i | G264: -0.0000764127981745506-0.000103676015853102i | H264: -19.0324617344989-25.8230277080292i | I264: -5.32724286018127E-06-8.58969794080242E-06i | J264: -1.32687911330213-2.13947272282556i | K264: 0.1287929811 | L264: 0 | M264: 0.01010754308 | N264: 76.72938152 | O264: 54.62444963 | P264: 77.38373962 | Q264: 9.925607799 | R264: -42.56325672 | S264: 2.72287713 | T264: 0.2136886472 | U264: 103.2320985 | V264: 81.1271666 | W264: 103.8864566 | X264: 45.03131055
C265: 81.28 | D265: 510.6973018 | E265: 510.697301767557i | F265: 1.07089092511089+0.062250054778327i | G265: -0.0000756256091606598-0.0000981968185645321i | H265: -19.7240462624681-25.6108825263064i | I265: -0.0000050413911905063-7.72102040368471E-06i | J265: -1.31485397833294-2.01373271998658i | K265: 0.1239429221 | L265: 0 | M265: 0.009221159429 | N265: 76.79593752 | O265: 54.22721351 | P265: 77.41754997 | Q265: 9.667259467 | R265: -41.85110888 | S265: 2.620339595 | T265: 0.1949491649 | U265: 103.2986545 | V265: 80.72993048 | W265: 103.9202669 | X265: 46.23472957
C266: 83.18 | D266: 522.6353539 | E266: 522.635353851198i | F266: 1.06723329960631+0.0603229949681448i | G266: -0.0000746828798645252-0.0000929205222415341i | H266: -20.3994578423562-25.3810281498836i | I266: -4.75751352192609E-06-0.0000069346274561849i | J266: -1.29950393853345-1.89417763082386i | K266: 0.1192130697 | L266: 0 | M266: 0.00840969636 | N266: 76.85938917 | O266: 53.82851805 | P266: 77.44994311 | Q266: 9.429550923 | R266: -41.12485672 | S266: 2.52034341 | T266: 0.1777936165 | U266: 103.3621061 | V266: 80.33123502 | W266: 103.9526601 | X266: 47.40025594
C267: 85.11 | D267: 534.7619015 | E267: 534.761901494055i | F267: 1.06381094425202+0.0584955854331263i | G267: -0.0000736132993388172-0.0000879023678507128i | H267: -21.0512166547054-25.1374657393084i | I267: -4.48103687379147E-06-6.23077438163173E-06i | J267: -1.2814434200773-1.78181636487461i | K267: 0.1146548914 | L267: 0 | M267: 0.007674779532 | N267: 76.91923046 | O267: 53.43269689 | P267: 77.48062899 | Q267: 9.212683374 | R267: -40.39617266 | S267: 2.42397667 | T267: 0.1622563705 | U267: 103.4219474 | V267: 79.93541386 | W267: 103.983346 | X267: 48.51606302
C268: 87.1 | D268: 547.2654403 | E268: 547.265440255342i | F268: 1.06055836251086+0.0567345293445617i | G268: -0.0000724173956427182-0.0000830649046510872i | H268: -21.688971041523-24.8778942622117i | I268: -4.20967232538741E-06-5.59167599424552E-06i | J268: -1.26079459706183-1.67470395250212i | K268: 0.1102000797 | L268: 0 | M268: 0.006999155771 | N268: 76.97651948 | O268: 53.03379448 | P268: 77.51012337 | Q268: 9.011417575 | R268: -39.65724961 | S268: 2.329795259 | T268: 0.1479726691 | U268: 103.4792364 | V268: 79.53651145 | W268: 104.0128403 | X268: 49.59964661
C269: 89.13 | D269: 560.0203064 | E269: 560.020306428916i | F269: 1.05749871455108+0.0550539018974423i | G269: -0.0000711227383583856-0.0000784583041949599i | H269: -22.3057083372078-24.6063086208261i | I269: -3.94780300889465E-06-5.01803806075755E-06i | J269: -1.23812081089216-1.57377086416793i | K269: 0.105896881 | L269: 0 | M269: 0.006384814373 | N269: 77.03077474 | O269: 52.63607687 | P269: 77.53815599 | Q269: 8.826293271 | R269: -38.9186229 | S269: 2.238819173 | T269: 0.1349845689 | U269: 103.5334917 | V269: 79.13879384 | W269: 104.040873 | X269: 50.63995875
C270: 91.2 | D270: 573.0265 | E270: 573.026500014778i | F270: 1.05461919977972+0.0534486319395448i | G270: -0.0000697451025583194-0.0000740778579085962i | H270: -22.9014579170498-24.3241587330141i | I270: -3.69647654428478E-06-4.50340419643937E-06i | J270: -1.21377270826311-1.47873496353357i | K270: 0.1017443284 | L270: 0 | M270: 0.005826198435 | N270: 77.08215282 | O270: 52.23965408 | P270: 77.56478683 | Q270: 8.655704007 | R270: -38.18275334 | S270: 2.151027971 | T270: 0.1231745887 | U270: =20*LOG10(MaxV)+N270 -> 103.5848698 | V270: =20*LOG10(MaxV)+O270 -> 78.74237105 | W270: 104.0675038 | X270: 51.63798655
C271: 93.33 | D271: 586.4096847 | E271: 586.409684719071i | F271: 1.05188324241934+0.0518999700743178i | G271: -0.000068285149830427-0.0000698799065922142i | H271: -23.4816459204581-24.030045004337i | I271: -3.45420352557178E-06-4.03779193619385E-06i | J271: -1.18781879114414-1.38850102521027i | K271: 0.09770395607 | L271: 0 | M271: 0.005313688523 | N271: 77.13124871 | O271: 51.8409276 | P271: 77.59030733 | Q271: 8.496815404 | R271: -37.4448668 | S271: 2.06560843 | T271: 0.1123393591 | U271: 103.6339657 | V271: 78.34364457 | W271: 104.0930243 | X271: 52.60360569
C272: 95.5 | D272: 600.0441968 | E272: 600.04419683565i | F272: 1.04930823149316+0.0504194227753365i | G272: -0.0000667696327601247-0.0000659014237904297i | H272: -24.0406091318527-23.7280078545596i | I272: -3.22391402049048E-06-3.62094072198392E-06i | J272: -1.16078003783178-1.3037307079336i | K272: 0.09381461249 | L272: 0 | M272: 0.004848178351 | N272: 77.17769974 | O272: 51.44386172 | P272: 77.61451435 | Q272: 8.35006093 | R272: -36.71390714 | S272: 1.983381863 | T272: 0.1024977746 | U272: 103.6804167 | V272: 77.94657869 | W272: 104.1172313 | X272: 53.52812763
C273: 97.72 | D273: 613.9928682 | E273: 613.992868217589i | F273: 1.04687289795101+0.0489966197322102i | G273: -0.0000652039040031589-0.0000621185527930872i | H273: -24.5810399522629-23.4179019082915i | I273: -0.0000030048464225016-3.24623750970052E-06i | J273: -1.13278876611971-1.22379012637981i | K273: 0.09005700249 | L273: 0 | M273: 0.004423478269 | N273: 77.22184318 | O273: 51.04677139 | P273: 77.63757055 | Q273: 8.213706569 | R273: -35.98809825 | S273: 1.903940342 | T273: 0.09351897679 | U273: 103.7245602 | V273: 77.54948836 | W273: 104.1402875 | X273: 54.41673907
C274: 100 | D274: 628.3185307 | E274: 628.318530717959i | F274: 1.04455991148283+0.0476229933374921i | G274: -0.000063592126244663-0.0000585117381665184i | H274: -25.1051651623582-23.0995083409463i | I274: -2.79633240435749E-06-2.90832749311899E-06i | J274: -1.10394778419822-1.14816167303585i | K274: 0.08641517242 | L274: 0 | M274: 0.004034580985 | N274: 77.26395512 | O274: 50.64812385 | P274: 77.65960951 | Q274: 8.086359219 | R274: -35.26581251 | S274: 1.826946582 | T274: 0.0852971039 | U274: 103.7666721 | V274: 77.15084082 | W274: 104.1623265 | X274: 55.27371652
C275: 102.3 | D275: 642.7698569 | E275: 642.769856924472i | F275: 1.0424003413838+0.0463189847462474i | G275: -0.0000619728144607868-0.0000551357780365986i | H275: -25.6042597266825-22.7795170086239i | I275: -0.0000026018650432823-2.60893673856124E-06i | J275: -1.07496857971698-1.07789027246574i | K275: 0.08294928422 | L275: 0 | M275: 0.003684596668 | N275: 77.3034333 | O275: 50.25497955 | P275: 77.68030624 | Q275: 7.969323781 | R275: -34.56068717 | S275: 1.753672498 | T275: 0.07789790961 | U275: 103.8061503 | V275: 76.75769652 | W275: 104.1830232 | X275: 56.08545209
C276: 104.7 | D276: 657.8495017 | E276: 657.849501661703i | F276: 1.0403141873755+0.0450377389428991i | G276: -0.0000602993004754548-0.0000518707351894228i | H276: -26.0954850698279-22.4478888647733i | I276: -0.0000024147769084458-0.0000023347430960928i | J276: -1.04503326347812-1.01039735329556i | K276: 0.07953979386 | L276: 0 | M276: 0.003358894586 | N276: 77.34171159 | O276: 49.85394986 | P276: 77.70040476 | Q276: 7.857950613 | R276: -33.84958076 | S276: 1.681590749 | T276: 0.07101207823 | U276: 103.8444286 | V276: 76.35666682 | W276: 104.2031217 | X276: 56.88036858
C277: 107.2 | D277: 673.5574649 | E277: 673.557464929652i | F277: 1.03830452341513+0.0437815538702583i | G277: -0.0000585816594300681-0.0000487256220492914i | H277: -26.5773072482556-22.1058235745659i | I277: -2.23579888516304E-06-2.08476650306205E-06i | J277: -1.01433647483509-0.945816155291642i | K277: 0.07619709355 | L277: 0 | M277: 0.003056967129 | N277: 77.37871464 | O277: 49.44576189 | P277: 77.71986024 | Q277: 7.752202383 | R277: -33.13494647 | S277: 1.610921042 | T277: 0.06462887814 | U277: 103.8814316 | V277: 75.94847886 | W277: 104.2225772 | X277: 57.65627689
C278: 109.6 | D278: 688.6371097 | E278: 688.637109666883i | F278: 1.0365165502243+0.0426442123098179i | G278: -0.0000569633028729326-0.00004593089839735i | H278: -27.0131983713702-21.7813997294113i | I278: -2.07803617380594E-06-1.87419609073115E-06i | J278: -0.98544853536884-0.888783273306721i | K278: 0.073174212 | L278: 0 | M278: 0.002798364759 | N278: 77.41173835 | O278: 49.06266373 | P278: 77.73724362 | Q278: 7.659373417 | R278: -32.47317613 | S278: 1.547012785 | T278: 0.0591616355 | U278: 103.9144553 | V278: 75.56538069 | W278: 104.2399606 | X278: 58.3550511
C279: 112.2 | D279: 704.9733915 | E279: 704.97339146555i | F279: 1.03472030979693+0.041481217110552i | G279: -0.0000552489932365959-0.0000431297758790422i | H279: -27.4580580689529-21.4349587424379i | I279: -1.92135808966747E-06-1.67398895691118E-06i | J279: -0.954890920300005-0.831951557720097i | K279: 0.07009014782 | L279: 0 | M279: 0.002548304522 | N279: 77.4450089 | O279: 48.65689588 | P279: 77.75477436 | Q279: 7.567288669 | R279: -31.78214045 | S279: 1.481811034 | T279: 0.05387498637 | U279: 103.9477259 | V279: 75.15961284 | W279: 104.2574913 | X279: 59.06516147
C280: 114.8 | D280: 721.3096733 | E280: 721.309673264216i | F280: 1.03305614487753+0.0403838860900387i | G280: -0.0000535790489979331-0.00004054346205387i | H280: -27.8765172107864-21.0942623817973i | I280: -1.77819215800717E-06-1.49873183532486E-06i | J280: -0.925171409792745-0.77977165670482i | K280: 0.06718993084 | L280: 0 | M280: 0.002325546057 | N280: 77.47591451 | O280: 48.26032953 | P280: 77.77107311 | Q280: 7.483011695 | R280: -31.11697399 | S280: 1.42049609 | T280: 0.04916553774 | U280: 103.9786315 | V280: 74.76304649 | W280: 104.2737901 | X280: 59.73037934
C281: 117.5 | D281: 738.2742736 | E281: 738.274273593601i | F281: 1.03145398157925+0.0393078038294055i | G281: -0.0000518947901675612-0.000038064439112031i | H281: -28.2851984548475-20.7469807832321i | I281: -0.0000016425091503341-0.0000013393663277127i | J281: -0.895247810639452-0.730020147702128i | K281: 0.06435814456 | L281: 0 | M281: 0.002119372187 | N281: 77.50574006 | O281: 47.85781438 | P281: 77.78681376 | Q281: 7.402805975 | R281: -30.45243642 | S281: 1.360627873 | T281: 0.04480671236 | U281: 104.008457 | V281: 74.36053135 | W281: 104.2895307 | X281: 60.37752828
C282: 120.2 | D282: 755.2388739 | E282: 755.238873922986i | F282: 1.02996772927557+0.0382908608050932i | G282: -0.0000502633100576684-0.000035776962483509i | H282: -28.6694761407088-20.4066698180278i | I282: -1.51881896497692E-06-1.19978698596299E-06i | J282: -0.866312704605069-0.684341407848668i | K282: 0.06169595921 | L282: 0 | M282: 0.001935536065 | N282: 77.53346822 | O282: 47.46435917 | P282: 77.80145641 | Q282: 7.329210972 | R282: -29.81340652 | S282: 1.304345275 | T282: 0.04092014053 | U282: 104.0361852 | V282: 73.96707614 | W282: 104.3041734 | X282: 60.98379878
C283: 123 | D283: 772.8317928 | E283: 772.831792783089i | F283: 1.02853699947383+0.0372934369583657i | G283: -0.0000486282550878614-0.0000335884892920446i | H283: -29.0441483124103-20.0613627370616i | I283: -1.40199131183989E-06-1.07295875702004E-06i | J283: -0.8373659207022-0.640844982319105i | K283: 0.05910070901 | L283: 0 | M283: 0.001765451821 | N283: 77.56021338 | O283: 47.06547696 | P283: 77.81558701 | Q283: 7.25909256 | R283: -29.17637816 | S283: 1.249477786 | T283: 0.03732430406 | U283: 104.0629303 | V283: 73.56819393 | W283: 104.318304 | X283: 61.57286513
C284: 125.9 | D284: 791.0530302 | E284: 791.05303017391i | F284: 1.02716239853922+0.036316626570212i | G284: -0.0000469961795977854-0.0000315007397279347i | H284: -29.4085594641277-19.7120571370153i | I284: -1.29205807883613E-06-9.58087827571809E-07i | J284: -0.808524590036026-0.599537730303724i | K284: 0.0565768283 | L284: 0 | M284: 0.001608523038 | N284: 77.58595625 | O284: 46.66173002 | P284: 77.82919361 | Q284: 7.192390527 | R284: -28.54279421 | S284: 1.196119156 | T284: 0.0340065938 | U284: 104.0886732 | V284: 73.16444698 | W284: 104.3319106 | X284: 62.1438902
C285: 128.8 | D285: 809.2742676 | E285: 809.274267564731i | F285: 1.02588640852837+0.0353922831144864i | G285: -0.0000454262217532686-0.0000295779265698481i | H285: -29.7507610200341-19.3713188305023i | I285: -1.19224568306928E-06-8.57588337228878E-07i | J285: -0.780831313394652-0.561655904667636i | K285: 0.05420696784 | L285: 0 | M285: 0.001468641387 | N285: 77.60989192 | O285: 46.26710488 | P285: 77.84184905 | Q285: 7.131052033 | R285: -27.93450541 | S285: 1.146016745 | T285: 0.03104928554 | U285: 104.1126089 | V285: 72.76982185 | W285: 104.344566 | X285: 62.6784274
C286: 131.8 | D286: 828.1238235 | E286: 828.12382348627i | F286: 1.0246602459003+0.0344867301699461i | G286: -0.0000438665514718556-0.0000277459410414518i | H286: -30.0832014075107-19.0278630205623i | I286: -1.09854295904708E-06-7.66574630716989E-07i | J286: -0.753368750972349-0.525708500804835i | K286: 0.05190483197 | L286: 0 | M286: 0.001339564592 | N286: 77.6329273 | O286: 45.86804471 | P286: 77.8540314 | Q286: 7.072629104 | R286: -27.33046168 | S286: 1.097346134 | T286: 0.02832040815 | U286: 104.1356443 | V286: 72.37076167 | W286: 104.3567484 | X286: 63.19617791
C287: 134.9 | D287: 847.6016979 | E287: 847.601697938526i | F287: 1.0234838921202+0.0336007035548134i | G287: -0.0000423222066532907-0.0000260047509202287i | H287: -30.4054852978179-18.6825577942059i | I287: -1.01085136797127E-06-6.8437468724593E-07i | J287: -0.726224571864089-0.491674374678119i | K287: 0.04967309379 | L287: 0 | M287: 0.001220733059 | N287: 77.65505729 | O287: 45.46504721 | P287: 77.86573694 | Q287: 7.01705487 | R287: -26.73177795 | S287: 1.050163836 | T287: 0.02580813099 | U287: 104.1577743 | V287: 71.96776417 | W287: 104.3684539 | X287: 63.69668407
C288: 138 | D288: 867.0795724 | E288: 867.079572390783i | F288: 1.02239095304549+0.0327611172587528i | G288: -0.0000408443424847227-0.0000244030880710689i | H288: -30.7078788587714-18.3469001256809i | I288: -9.31456503974998E-07-6.1248320788947E-07i | J288: -0.700294134909322-0.460481403463318i | K288: 0.04757910277 | L288: 0 | M288: 0.001114785584 | N288: 77.67564352 | O288: 45.07114544 | P288: 77.87662711 | Q288: 6.965835478 | R288: -26.15758352 | S288: 1.005893719 | T288: 0.02356824219 | U288: 104.1783605 | V288: 71.57386241 | W288: 104.3793441 | X288: 64.16504216
C289: 141.3 | D289: 887.8140839 | E289: 887.814083904476i | F289: 1.02131041624432+0.0319142668812486i | G289: -0.0000393416947423784-0.0000228364599870146i | H289: -31.0096685831742-18.0000139914519i | I289: -8.55065084269078E-07-5.45634868505717E-07i | J289: -0.673974140002314-0.430076959078231i | K289: 0.04548926082 | L289: 0 | M289: 0.001014324262 | N289: 77.69601917 | O289: 44.66137785 | P289: 77.88740647 | Q289: 6.91558661 | R289: -25.57173523 | S289: 0.9617113205 | T289: 0.0214443389 | U289: 104.1987361 | V289: 71.16409482 | W289: 104.3901234 | X289: 64.63126736
C290: 144.5 | D290: 907.9202769 | E290: 907.92027688745i | F290: 1.02033660526122+0.0311356057511616i | G290: -0.0000379514093182473-0.0000214403542391417i | H290: -31.2840764756407-17.673696279828i | I290: -7.8812039126062E-07-4.88974458426225E-07i | J290: -0.649662793427661-0.403071048660268i | K290: 0.04358896947 | L290: 0 | M290: 0.0009274857261 | N290: 77.71440102 | O290: 44.27301368 | P290: 77.89713109 | Q290: 6.870630285 | R290: -25.02722826 | S290: 0.9215363061 | T290: 0.01960844178 | U290: 104.217118 | V290: 70.77573065 | W290: 104.3998481 | X290: 65.05416659
C291: 147.9 | D291: 929.2831069 | E291: 929.283106931861i | F291: 1.01937421199411+0.0303505178016353i | G291: -0.000036543243431039-0.0000200766859206965i | H291: -31.5575424922823-17.3375652941754i | I291: -7.23832949373576E-07-4.36299970052913E-07i | J291: -0.62507831578433-0.376774296739944i | K291: 0.04169510712 | L291: 0 | M291: 0.0008451578565 | N291: 77.73258394 | O291: 43.86963872 | P291: 77.90675011 | Q291: 6.826505934 | R291: -24.47266281 | S291: 0.8814972107 | T291: 0.01786790692 | U291: 104.2353009 | V291: 70.37235569 | W291: 104.4094671 | X291: 65.47465591
C292: 151.4 | D292: 951.2742555 | E292: 951.274255506989i | F292: 1.01845400644637+0.0295842279031736i | G292: -0.0000351644947339573-0.0000187890261235139i | H292: -31.8211498419634-17.002616422739i | I292: -6.64195685843575E-07-3.89003405105848E-07i | J292: -0.601045759466128-0.352018015232666i | K292: 0.03986940171 | L292: 0 | M292: 0.0007697269375 | N292: 77.74998448 | O292: 43.46392382 | P292: 77.91595452 | Q292: 6.784597574 | R292: -23.92607706 | S292: 0.8428990551 | T292: 0.01627318396 | U292: 104.2527014 | V292: 69.96664079 | W292: 104.4186715 | X292: 65.87909191
C293: 154.9 | D293: 973.2654041 | E293: 973.265404082118i | F293: 1.01759858477004+0.0288570982935705i | G293: -0.0000338540275150088-0.0000176074144867194i | H293: -32.0680768042656-16.6785449629097i | I293: -6.10441872663109E-07-3.47708208887225E-07i | J293: -0.578238345450083-0.329365052448362i | K293: 0.03815909097 | L293: 0 | M293: 0.0007025242191 | N293: 77.76617222 | O293: 43.06743783 | P293: 77.92451644 | Q293: 6.745885248 | R293: -23.40266617 | S293: 0.8067405165 | T293: 0.01485241752 | U293: 104.2688892 | V293: 69.5701548 | W293: 104.4272334 | X293: 66.25714946
C294: 158.5 | D294: 995.8848712 | E294: 995.884871187964i | F294: 1.01677998990764+0.0281468746666951i | G294: -0.0000325736147208399-0.0000164916288983174i | H294: -32.3060770908199-16.3561778177899i | I294: -5.60590996074629E-07-3.10582158550149E-07i | J294: -0.555986680962975-0.308031246858674i | K294: 0.03651046699 | L294: 0 | M294: 0.0006408771661 | N294: 77.78167352 | O294: 42.66882173 | P294: 77.93271417 | Q294: 6.709059941 | R294: -22.88702933 | S294: 0.7718861284 | T294: 0.0135491062 | U294: 104.2843905 | V294: 69.1715387 | W294: 104.4354311 | X294: 66.62082782
C295: 162.2 | D295: 1019.132657 | E295: 1019.13265682453i | F295: 1.01599738832591+0.0274536811860825i | G295: -0.0000313250491275366-0.000015439570717815i | H295: -32.5351787597606-16.0360225209192i | I295: -5.14445626397833E-07-2.77256524789909E-07i | J295: -0.53431936687107-0.287967324795671i | K295: 0.03492333098 | L295: 0 | M295: 0.0005844018164 | N295: 77.79650229 | O295: 42.26842024 | P295: 77.94055494 | Q295: 6.674054367 | R295: -22.3796412 | S295: 0.7383316886 | T295: 0.01235513245 | U295: 104.2992193 | V295: 68.77113721 | W295: 104.4432719 | X295: 66.97025565
C296: 166 | D296: 1043.008761 | E296: 1043.00876099181i | F296: 1.0152498439396+0.0267775636725533i | G296: -0.0000301097891485085-0.0000144489530111488i | H296: -32.7554542870381-15.7185431461479i | I296: -4.71803067767692E-07-2.47384285234796E-07i | J296: -0.513259117907656-0.269121268381295i | K296: 0.03339718021 | L296: 0 | M296: 0.0005327261204 | N296: 77.81067462 | O296: 41.86655845 | P296: 77.94804722 | Q296: 6.640799074 | R296: -21.8809052 | S296: 0.7060665682 | T296: 0.0112626306 | U296: 104.3133916 | V296: 68.36927542 | W296: 104.4507642 | X296: 67.30562425
C297: 169.8 | D297: 1066.884865 | E297: 1066.88486515909i | F297: 1.01455399771097+0.0261349798531323i | G297: -0.0000289584510821848-0.0000135402342265655i | H297: -32.961763371691-15.4120810987675i | I297: -4.33416035809108E-07-2.21282307163864E-07i | J297: -0.493332905592627-0.251873106968912i | K297: 0.03196763726 | L297: 0 | M297: 0.0004866367429 | N297: 77.82387331 | O297: 41.47376047 | P297: 77.95502336 | Q297: 6.610002874 | R297: -21.40344777 | S297: 0.6758438824 | T297: 0.01028823191 | U297: 104.3265903 | V297: 67.97647744 | W297: 104.4577403 | X297: 67.61920314
C298: 173.8 | D298: 1092.017606 | E298: 1092.01760638781i | F298: 1.01387221882779+0.0254920606478005i | G298: -0.0000278113405237758-0.0000126631936374392i | H298: -33.1650917863921-15.100889471167i | I298: -3.97068454800415E-07-1.97284948889166E-07i | J298: -0.473505106223796-0.235262785423425i | K298: 0.03055858529 | L298: 0 | M298: 0.000443378742 | N298: 77.83681088 | O298: 41.06964332 | P298: 77.96185998 | Q298: 6.579977539 | R298: -20.9224307 | S298: 0.6460544067 | T298: 0.009373692774 | U298: 104.3395278 | V298: 67.57236029 | W298: 104.464577 | X298: 67.92775879
C299: 177.8 | D299: 1117.150348 | E299: 1117.15034761653i | F299: 1.01323766406116+0.0248809131085013i | G299: -0.0000267265493556233-0.0000118594432488614i | H299: -33.3553990649739-14.800880464988i | I299: -3.64397791317096E-07-1.76336587854857E-07i | J299: -0.454777516769835-0.220072452279256i | K299: 0.02923961071 | L299: 0 | M299: 0.0004048213711 | N299: 77.84885709 | O299: 40.674694 | P299: 77.96822411 | Q299: 6.552163281 | R299: -20.46217113 | S299: 0.6181693024 | T299: 0.008558532022 | U299: 104.3515741 | V299: 67.17741097 | W299: 104.4709411 | X299: 68.21611549
C300: 182 | D300: 1143.539726 | E300: 1143.53972590668i | F300: 1.01261751059084+0.024270829505754i | G300: -0.0000256502365082861-0.0000110862931462253i | H300: -33.5423809141307-14.4973582413667i | I300: -3.33581011720746E-07-1.57140254392053E-07i | J300: -0.436218253084872-0.20548965574095i | K300: 0.02794352391 | L300: 0 | M300: 0.0003687402215 | N300: 77.86063409 | O300: 40.26942086 | P300: 77.9744445 | Q300: 6.525102152 | R300: -19.99983868 | S300: 0.5907680801 | T300: 0.007795722307 | U300: 104.3633511 | V300: 66.77213783 | W300: 104.4771615 | X300: 68.49902373
C301: 186.2 | D301: 1169.929104 | E301: 1169.92910419684i | F301: 1.01204028208088+0.0236907288530522i | G301: -0.0000246339343548666-0.0000103782428305541i | H301: -33.7173061865994-14.2050549520744i | I301: -3.05913113789321E-07-1.40392655571291E-07i | J301: -0.418713713186982-0.19216021631201i | K301: 0.02673085569 | L301: 0 | M301: 0.0003365901527 | N301: 77.87159939 | O301: 39.87337029 | P301: 77.9802347 | Q301: 6.500021974 | R301: -19.55761486 | S301: 0.5651304519 | T301: 0.007116021549 | U301: 104.3743164 | V301: 66.37608726 | W301: 104.4829517 | X301: 68.76332556
C302: 190.5 | D302: 1196.946801 | E302: 1196.94680101771i | F302: =IMPRODUCT(IMDIV(COMPLEX(0,Sd*Dbl/Sr*D302),COMPLEX(Kbr,Dbl*D302)),IMSUM(IMDIV(IMPRODUCT(COMPLEX(Kbr,0),IMSUB(COMPLEX(1,0),IMDIV(COMPLEX(Kbr,0),COMPLEX(Kbr,Dbl*D302)))),IMSUB(Mr*D302^2-Kr,IMSUM(COMPLEX(0,D302*Dr),IMPRODUCT(COMPLEX(Kbr,0),IMSUB(COMPLEX(1,0),IMDIV(COMPLEX(Kbr,0),COMPLEX(Kbr,Dbl*D302))))))),COMPLEX(1,0))) -> 1.01148970930329+0.0231255762410753i | G302: =IMDIV(COMPLEX(Bl,0),IMPRODUCT(COMPLEX(Re,Le*D302),IMSUM(COMPLEX(Kd-Md*D302^2,0),IMPRODUCT(E302,IMSUM(COMPLEX(Dd,0),IMDIV(COMPLEX(Bl^2,0),COMPLEX(Re,Le*D302)))),IMPRODUCT(COMPLEX(Sd*Kbr/Sr,0),F302)))) -> -0.0000236514176486216-9.71385233956482E-06i | H302: -33.8849519307919-13.9168579439528i | I302: =IMPRODUCT(G302,IMPRODUCT(IMDIV(COMPLEX(0,Sd*Dbl*Kbr/Sr*D302),COMPLEX(Kbr,Dbl*D302)),IMDIV(COMPLEX(1,0),IMSUB(Mr*D302^2-Kr,IMSUM(COMPLEX(0,D302*Dr),IMPRODUCT(COMPLEX(Kbr,0),IMSUB(COMPLEX(1,0),IMDIV(COMPLEX(Kbr,0),COMPLEX(Kbr,Dbl*D302))))))))) -> -2.80459634428057E-07-1.25411785010777E-07i | J302: -0.401809370258871-0.179675162384723i | K302: =1000*IMABS(G302) -> 0.02556850571 | L302: =IF(AND(K303>K302,K303>K304),K303,0) -> 0 | M302: 0.0003072225942 | N302: =79.6+20*LOG10(IMABS(IMPRODUCT(COMPLEX(Sd,0),H302))) -> 77.88206125 | O302: =79.6+20*LOG10(IMABS(IMPRODUCT(COMPLEX(Sr,0),J302))) -> 39.47701734 | P302: =79.6+20*LOG10(IMABS(IMSUM(IMPRODUCT(COMPLEX(Sd,0),H302),IMPRODUCT(COMPLEX(Sr,0),J302)))) -> 77.98575765 | Q302: =IMABS(IMDIV(COMPLEX(Re,D302*Le),IMSUB(COMPLEX(1,0),IMPRODUCT(COMPLEX(Bl,0),IMPRODUCT(COMPLEX(0,D302),G302))))) -> 6.476196546 | R302: =180/PI()*IMARGUMENT(IMDIV(COMPLEX(Re,D302*Le),IMSUB(COMPLEX(1,0),IMPRODUCT(COMPLEX(Bl,0),IMPRODUCT(COMPLEX(0,D302),G302))))) -> -19.1243836 | S302: =MaxV*K302 -> 0.5405566268 | T302: =MaxV*M302 -> 0.006495147237 | U302: =20*LOG10(MaxV)+N302 -> 104.3847782 | V302: =20*LOG10(MaxV)+O302 -> 65.97973431 | W302: =20*LOG10(MaxV)+P302 -> 104.4884746 | X302: =IMABS(IMDIV(COMPLEX($E$55^2,0),IMDIV(COMPLEX(Re,D302*Le),IMSUB(COMPLEX(1,0),IMPRODUCT(COMPLEX(Bl,0),IMPRODUCT(COMPLEX(0,D302),G302)))))) -> 69.01630053
C303: 195 | D303: =2*PI()*C303 -> 1225.221135 | E303: =COMPLEX(0,2*PI()*C303) -> 1225.22113490002i | F303: 1.01095329985418+0.0225629983587616i | G303: -0.0000226817141896148-9.07737699588892E-06i | H303: =IMPRODUCT(G303,COMPLEX(-D303^2,0)) -> -34.0490369755101-13.6266572442387i | I303: -2.56562416400717E-07-1.11736668992994E-07i | J303: =IMPRODUCT(I303,COMPLEX(-D303^2,0)) -> -0.385142989172927-0.167735381120566i | K303: 0.0244306965 | L303: 0 | M303: =1000*IMABS(I303) -> 0.0002798380902 | N303: 77.89225653 | O303: 39.07167612 | P303: 77.99113845 | Q303: 6.453074413 | R303: -18.69081643 | S303: 0.5165016308 | T303: 0.005916197677 | U303: 104.3949735 | V303: 65.57439309 | W303: 104.4938554 | X303: 69.26359415
C304: 199.5 | D304: 1253.495469 | E304: 1253.49546878233i | F304: 1.01045385562292+0.0220277689128534i | G304: -0.000021767678142087-8.49484432561483E-06i | H304: -34.2024836596001-13.347531709224i | I304: -2.35130615920693E-07-9.98093579857457E-08i | J304: -0.369449189592261-0.156825542591165i | K304: 0.02336651861 | L304: 0 | M304: 0.0002554374962 | N304: 77.90175133 | O304: 38.67556408 | P304: 77.99614822 | Q304: 6.431625635 | R304: -18.27622882 | S304: 0.4940033111 | T304: 0.00540033246 | U304: 104.4044683 | V304: 65.17828104 | W304: 104.4988652 | X304: 69.49458076
C305: 204.2 | D305: 1283.02644 | E305: 1283.02643972607i | F305: 1.0099680636155+0.0214958005395528i | G305: -0.0000208682160054062-0.0000079380141843088i | H305: -34.3523566209926-13.0672163854941i | I305: -2.15058798695428E-07-8.89425692684351E-08i | J305: -0.354020513557732-0.146413419216337i | K305: 0.02232699058 | L305: 0 | M305: 0.0002327253049 | N305: 77.91098839 | O305: 38.27125677 | P305: 78.00102069 | Q305: 6.41083691 | R305: -17.86218093 | S305: 0.4720261268 | T305: 0.00492016261 | U305: 104.4137054 | V305: 64.77397374 | W305: 104.5037377 | X305: 69.71993414
C306: 208.9 | D306: 1312.557411 | E306: 1312.55741066982i | F306: 1.00951557688458+0.0209894593237193i | G306: -0.0000200211093653533-7.42843828751006E-06i | H306: -34.4925064875588-12.7977651561992i | I306: -1.97064057300371E-07-7.94628357247548E-08i | J306: -0.339503328754618-0.136899126154269i | K306: 0.02135477735 | L306: 0 | M306: 0.0002124819638 | N306: 77.91959365 | O306: 37.87613413 | P306: 78.00555868 | Q306: 6.391538674 | R306: -17.46627642 | S306: 0.4514720783 | T306: 0.004492187965 | U306: 104.4223106 | V306: 64.3788511 | W306: 104.5082756 | X306: 69.93044241
C307: 213.8 | D307: 1343.345019 | E307: 1343.345018675i | F307: 1.00907606724794+0.0204868707602973i | G307: -0.0000191896328869045-6.94224141745234E-06i | H307: -34.6291478708049-12.5278011318206i | I307: -1.80245455179221E-07-7.08389315390353E-08i | J307: -0.325266593541834-0.127834224330009i | K307: 0.02040678138 | L307: 0 | M307: 0.0001936661518 | N307: 77.92795337 | O307: 37.4735376 | P307: 78.00996599 | Q307: 6.372853987 | R307: -17.07160192 | S307: 0.4314300191 | T307: 0.004094393428 | U307: 104.4306703 | V307: 63.97625456 | W307: 104.512683 | X307: 70.13547275
C308: 218.8 | D308: 1374.760945 | E308: 1374.76094521089i | F308: 1.00865842840441+0.0199987203980174i | G308: -0.0000183915619987548-6.48859460602988E-06i | H308: -34.7594573297408-12.2632339413886i | I308: -1.64877689398043E-07-6.31691943438741E-08i | J308: -0.311613500236987-0.119387734195641i | K308: 0.01950260015 | L308: 0 | M308: 0.0001765644346 | N308: 77.93589814 | O308: 37.07211237 | P308: 78.01415342 | Q308: 6.355153812 | R308: -16.68667284 | S308: 0.4123142695 | T308: 0.003732837433 | U308: 104.4386151 | V308: 63.57482934 | W308: 104.5168704 | X308: 70.33081187
C309: 223.9 | D309: 1406.80519 | E309: 1406.80519027751i | F309: 1.00826161038978+0.019524643931054i | G309: -0.0000176260313116235-6.06543296411288E-06i | H309: -34.8836934344833-12.0041034948119i | I309: -1.50840099350826E-07-5.6348344320812E-08i | J309: -0.298527767842514-0.111519055769047i | K309: 0.01864045216 | L309: 0 | M309: 0.0001610213386 | N309: 77.9434477 | O309: 36.6719875 | P309: 78.01813149 | Q309: 6.338385346 | R309: -16.31137004 | S309: 0.3940871656 | T309: 0.003404233029 | U309: 104.4461647 | V309: 63.17470447 | W309: 104.5208485 | X309: 70.516875
C310: 229.1 | D310: 1439.477754 | E310: 1439.47775387484i | F310: 1.00788459934805+0.0190642741834139i | G310: -0.0000168921264034874-0.0000056707940713894i | H310: -35.0021109964747-11.7504308684278i | I310: -1.38020810862297E-07-5.02823116111818E-08i | J310: -0.285992398247043-0.104189787012875i | K310: 0.01781858131 | L310: 0 | M310: 0.0001468947075 | N310: 77.95062113 | O310: 36.27328164 | P310: 78.02191038 | Q310: 6.322498265 | R310: -15.94555866 | S310: 0.3767115809 | T310: 0.003105574823 | U310: 104.4533381 | V310: 62.77599861 | W310: 104.5246273 | X310: 70.69406877
C311: 234.4 | D311: 1472.778636 | E311: 1472.7786360029i | F311: 1.00752641875083+0.0186172430221141i | G311: -0.0000161888957654345-0.0000053028180232221i | H311: -35.1149600139915-11.5022201356375i | I311: -1.26316348959102E-07-4.48871550424535E-08i | J311: -0.273989875966887-0.0973636915880955i | K311: 0.01703526416 | L311: 0 | M311: 0.0001340547526 | N311: 77.95743684 | O311: 35.87610371 | P311: 78.0254999 | Q311: 6.307444677 | R311: -15.58909049 | S311: 0.3601510796 | T311: 0.002834118885 | U311: 104.4601538 | V311: 62.37882068 | W311: 104.5282169 | X311: 70.86278993
C312: 239.9 | D312: 1507.336155 | E312: 1507.33615519238i | F312: 1.00718004875787+0.018175338809681i | G312: -0.0000155032762175986-4.95367463632838E-06i | H312: -35.2244091840699-11.2550573121252i | I312: -1.15444148804239E-07-4.00051547067848E-08i | J312: -0.262296296493197-0.0908942032048811i | K312: 0.01627545593 | L312: 0 | M312: 0.0001221792286 | N312: 77.96402829 | O312: 35.47331259 | P312: 78.02897043 | Q312: 6.292924444 | R312: -15.23551967 | S312: 0.344087592 | T312: 0.002583052464 | U312: 104.4667453 | V312: 61.97602956 | W312: 104.5316874 | X312: 71.02629805
C313: 245.5 | D313: 1542.521993 | E313: 1542.52199291259i | F313: 1.00685149284231+0.0177467768531864i | G313: -0.0000148478214035126-4.62881264401171E-06i | H313: -35.328521668439-11.0136769125217i | I313: -1.05542408827632E-07-3.56737083173603E-08i | J313: -0.251124873870327-0.084881097572017i | K313: 0.01555261094 | L313: 0 | M313: 0.0001114083189 | N313: 77.97028112 | O313: 35.07256738 | P313: 78.03226183 | Q313: 6.279184537 | R313: -14.89151658 | S313: 0.3288055627 | T313: 0.002355339251 | U313: 104.4729981 | V313: 61.57528435 | W313: 104.5349788 | X313: 71.18171548
C314: 251.2 | D314: 1578.336149 | E314: 1578.33614916351i | F314: 1.00653979935175+0.0173311359690046i | G314: -0.0000142213939088662-4.32653274018475E-06i | H314: -35.4275543256367-10.7780204019932i | I314: -9.65239567359254E-08-3.18294093406564E-08i | J314: -0.240455172179394-0.0792916739241726i | K314: 0.01486495645 | L314: 0 | M314: 0.0001016365364 | N314: 77.97621333 | O314: 34.67393763 | P314: 78.03538371 | Q314: 6.266179928 | R314: -14.55686517 | S314: 0.3142675137 | T314: 0.002148749086 | U314: 104.4789303 | V314: 61.1766546 | W314: 104.5381007 | X314: 71.3294435
C315: 257 | D315: 1614.778624 | E315: 1614.77862394515i | F315: 1.00624406371249+0.0169280038900881i | G315: -0.0000136228640660148-4.04524597630301E-06i | H315: -35.5217543400364-10.5480193532675i | I315: -8.83091495696553E-08-2.84161721655271E-08i | J315: -0.230266990978534-0.0740954532069496i | K315: 0.01421078606 | L315: 0 | M315: 9.276844689e-05 | N315: 77.98184206 | O315: 34.27748575 | P315: 78.03834516 | Q315: 6.253868191 | R315: -14.23134573 | S315: 0.3004373687 | T315: 0.00196126435 | U315: 104.484559 | V315: 60.78020272 | W315: 104.5410621 | X315: 71.46986688
C316: 263 | D316: 1652.477736 | E316: 1652.47773578823i | F316: 1.00595883533847+0.016530508012271i | G316: -0.0000130417303187507-3.77922811309882E-06i | H316: -35.6128269326978-10.3198727041204i | I316: -8.07054007867677E-08-2.53364599714707E-08i | J316: -0.220380839083973-0.0691858320942221i | K316: 0.01357826553 | L316: 0 | M316: 8.458899408e-05 | N316: 77.98727099 | O316: 33.87666225 | P316: 78.04120083 | Q316: 6.242018813 | R316: -13.90949061 | S316: 0.2870649344 | T316: 0.001788338428 | U316: 104.489988 | V316: 60.37937922 | W316: 104.5439178 | X316: 71.6055399
C317: 269.2 | D317: 1691.433485 | E317: 1691.43348469274i | F317: 1.00568422989105+0.016139161341107i | G317: -0.0000124786333292073-3.52818750032594E-06i | H317: -35.7007114965622-10.0939582670561i | I317: -7.36843579966241E-08-2.25648175060235E-08i | J317: -0.210807060136127-0.0645567522101634i | K317: 0.01296782159 | L317: 0 | M317: 7.706202439e-05 | N317: 77.99249786 | O317: 33.47196559 | P317: 78.04394957 | Q317: 6.230633841 | R317: -13.59177252 | S317: 0.2741592323 | T317: 0.00162920698 | U317: 104.4952148 | V317: 59.97468256 | W317: 104.5466665 | X317: 71.73638165
C318: 275.4 | D318: 1730.389234 | E318: 1730.38923359726i | F318: 1.00542824737959+0.015766143929757i | G318: -0.000011950522951103-3.29880885534241E-06i | H318: -35.7828162967231-9.87744818797458i | I318: -6.74069512051504E-08-2.01488646640881E-08i | J318: -0.201833054667575-0.0603306755539142i | K318: 0.01239746501 | L318: 0 | M318: 7.035391828e-05 | N318: 77.99737036 | O318: 33.07647834 | P318: 78.04651139 | Q318: 6.220041337 | R318: -13.28817402 | S318: 0.2621010373 | T318: 0.001487387538 | U318: 104.5000873 | V318: 59.57919531 | W318: 104.5492284 | X318: 71.8585461
C319: 281.8 | D319: 1770.60162 | E319: 1770.60161956321i | F319: 1.0051817908018+0.0153989712234336i | G319: -0.0000114391342991941-3.08234018056581E-06i | H319: -35.8620302910063-9.66322922971755i | I319: -6.1609528970313E-08-1.79729170646769E-08i | J319: -0.193147727473018-0.056345635896293i | K319: 0.01184713529 | L319: 0 | M319: 6.417756468e-05 | N319: 78.00206161 | O319: 32.67745931 | P319: 78.04897737 | Q319: 6.20986156 | R319: -12.9886224 | S319: 0.2504662401 | T319: 0.001356810143 | U319: 104.5047786 | V319: 59.18017628 | W319: 104.5516943 | X319: 71.97634324
C320: 288.4 | D320: 1812.070643 | E320: 1812.07064259059i | F320: 1.00494486341696+0.0150380177088654i | G320: -0.0000109447964796264-2.87842402004633E-06i | H320: -35.9383338708683-9.45159315176988i | I320: -5.62663572115988E-08-1.60173473661666E-08i | J320: -0.184756211313031-0.0525945620316019i | K320: 0.01131697375 | L320: 0 | M320: 5.850178092e-05 | N320: 78.00657151 | O320: 32.27534709 | P320: 78.05134752 | Q320: 6.200092513 | R320: -12.6934725 | S320: 0.2392578286 | T320: 0.001236815546 | U320: 104.5092885 | V320: 58.77806405 | W320: 104.5540645 | X320: 72.08975127
C321: 295.1 | D321: 1854.167984 | E321: 1854.1679841487i | F321: 1.00472064004116+0.0146886872184875i | G321: -0.0000104744978566264-2.68934479375421E-06i | H321: -36.0106837800611-9.24580311811036i | I321: -5.14193566526052E-08-1.428732894871E-08i | J321: -0.176776607140146-0.0491189641619171i | K321: 0.0108142351 | L321: 0 | M321: 5.336738711e-05 | N321: 78.01083962 | O321: 31.87644228 | P321: 78.05359013 | Q321: 6.190862727 | R321: -12.40720577 | S321: 0.2286291782 | T321: 0.001128266747 | U321: 104.5135566 | V321: 58.37915925 | W321: 104.5563071 | X321: 72.19722789
C322: 302 | D322: 1897.521963 | E322: 1897.52196276823i | F322: 1.00450534443053+0.0143456707142013i | G322: -0.0000100206585987594-0.0000025114838834794i | H322: -36.0802791277051-9.04282274938376i | I322: -4.69589228530194E-08-1.27345422746715E-08i | J322: -0.169079809213645-0.0458518604645998i | K322: 0.01033059292 | L322: 0 | M322: 4.865499977e-05 | N322: 78.01493779 | O322: 31.47498232 | P322: 78.05574303 | Q322: 6.182014555 | R322: -12.12553166 | S322: 0.2184042558 | T322: 0.001028639798 | U322: 104.5176548 | V322: 57.97769928 | W322: 104.55846 | X322: 72.30056208
C323: 309 | D323: 1941.50426 | E323: 1941.50425991849i | F323: 1.00430167983198+0.0140138355442277i | G323: -0.000009589286509868-2.34666687845269E-06i | H323: -36.1462285510103-8.84561716185539i | I323: -4.2915473455469E-08-1.13614719918741E-08i | J323: -0.161767250389263-0.0428263732522302i | K323: 0.009872247019 | L323: 0 | M323: 4.439392873e-05 | N323: 78.01881455 | O323: 31.07696589 | P323: 78.05777922 | Q323: 6.173657108 | R323: -11.85250277 | S323: 0.2087141348 | T323: 0.0009385543543 | U323: 104.5215315 | V323: 57.57968286 | W323: 104.5604962 | X323: 72.39843732
C324: 316.2 | D324: 1986.743194 | E324: 1986.74319413019i | F324: 1.00410631254689+0.0136883134738629i | G324: -9.17360852345882E-06-2.19180360733411E-06i | H324: -36.2095953011331-8.65137436355397i | I324: -3.91988513687496E-08-1.01302002209184E-08i | J324: -0.154723688143227-0.0399854048034527i | K324: 0.009431812996 | L324: 0 | M324: 4.048667565e-05 | N324: 78.02253335 | O324: 30.67687209 | P324: 78.05973207 | Q324: 6.165651748 | R324: -11.58416659 | S324: 0.1994026979 | T324: 0.0008559491537 | U324: 104.5252503 | V324: 57.17958906 | W324: 104.562449 | X324: 72.49243801
C325: 323.6 | D325: 2033.238765 | E325: 2033.23876540331i | F325: 1.00391910423295+0.0133692819822995i | G325: -0.0000087735573553159-2.04647760629253E-06i | H325: -36.2704114423874-8.46026096163698i | I325: -3.57874949398574E-08-9.0276915718132E-09i | J325: -0.147947646934172-0.037321017510217i | K325: 0.009009072053 | L325: 0 | M325: 3.690858991e-05 | N325: 78.02609683 | O325: 30.27504469 | P325: 78.06160302 | Q325: 6.15799136 | R325: -11.32070916 | S325: 0.1904653192 | T325: 0.0007803030452 | U325: 104.5288138 | V325: 56.77776165 | W325: 104.56432 | X325: 72.5826168
C326: 331.1 | D326: 2080.362655 | E326: 2080.36265520716i | F326: 1.00374216514219+0.0130608934153034i | G326: -8.39388711667025E-06-1.91197122038083E-06i | H326: -36.3279777269002-8.27483702640288i | I326: -3.26992300799372E-08-8.05387163413883E-09i | J326: -0.141519284870008-0.0348564217356752i | K326: 0.008608889294 | L326: 0 | M326: 3.367646799e-05 | N326: 78.02946479 | O326: 29.87705305 | P326: 78.063371 | Q326: 6.15076075 | R326: -11.0656066 | S326: 0.1820048544 | T326: 0.0007119711315 | U326: 104.5321818 | V326: 56.37977002 | W326: 104.566088 | X326: 72.66794228
C327: 338.8 | D327: 2128.743182 | E327: 2128.74318207244i | F327: 1.00357271851298+0.0127588615137224i | G327: -8.02886533961234E-06-1.78583455929347E-06i | H327: -36.3831849403329-8.09259419547686i | I327: -2.98664422374934E-08-7.18219497901259E-09i | J327: -0.135341202707101-0.0325464579546133i | K327: 0.008225076517 | L327: 0 | M327: 3.071788236e-05 | N327: 78.0326901 | O327: 29.47771662 | P327: 78.06506382 | Q327: 6.143845029 | R327: -10.81535769 | S327: 0.1738904756 | T327: 0.0006494221861 | U327: 104.5354071 | V327: 55.98043359 | W327: 104.5677808 | X327: 72.74973978
C328: 346.7 | D328: 2178.380346 | E328: 2178.38034599916i | F328: 1.00341058501071+0.0124632798898385i | G328: -7.67828529204076E-06-1.66766550670609E-06i | H328: -36.436081482631-7.91364138958248i | I328: -2.72708817108809E-08-6.40281622169806E-09i | J328: -0.129409631229885-0.0303835458958437i | K328: 0.007857300635 | L328: 0 | M328: 2.801244446e-05 | N328: 78.03577617 | O328: 29.07732894 | P328: 78.06668329 | Q328: 6.137235755 | R328: -10.57007392 | S328: 0.1661151409 | T328: 0.0005922251641 | U328: 104.5384931 | V328: 55.58004591 | W328: 104.5694003 | X328: 72.82808499
C329: 354.8 | D329: 2229.274147 | E329: 2229.27414698732i | F329: 1.00325556814689+0.0121742116193063i | G329: -0.0000073418902777128-1.55706072662562E-06i | H329: -36.4867220962365-7.73806742819529i | I329: -2.48950416425779E-08-5.70664551336898E-09i | J329: -0.123719972871884-0.0283601063312123i | K329: 0.007505184272 | L329: 0 | M329: 2.554073024e-05 | N329: 78.03872674 | O329: 28.67616575 | P329: 78.0682314 | Q329: 6.130923869 | R329: -10.32984024 | S329: 0.1586708719 | T329: 0.0005399694118 | U329: 104.5414437 | V329: 55.17888272 | W329: 104.5709484 | X329: 72.90306269
... 45 more rows
